Cogmind - Beta 11 @@@ ROGUE MODE // 2022.04.22 @ 22:34:54 Player: MTF Result: Escaped singularity! Performance ------------- Evolutions (9) 4500 Regions Visited (33) 6600 Robots Destroyed (382) 1910 Value Destroyed (21364) 21364 Prototype IDs (310) 6200 Alien Tech Used (5) 1000 Bonus (52893) 52893 TOTAL SCORE: 94467 Bonus ------- High Alert Combat Kills 916 Follower Combat Kills 1294 Network Hubs Disabled 400 Aligned with FarCom 300 Met Data Miner 300 Used Data Conduit 3000 Met Imprinter 300 Triggered Deep Caves Wall 500 Exposed GOLEM Chamber 500 Met Zhirov 300 A7 Reached Mainframe 300 Met R17 at Cetus 500 Found Hidden Lab 3000 Decrypted A0 Command 3000 Pursued by Intercept 1000 Destroyed MAIN.C Guards 500 Met MAIN.C 5000 Destroyed MAIN.C Shell 5000 Destroyed MAIN.C 10000 Met Architect 300 Destroyed Architect 15000 Win 3000 Friendly Fire -1517 Cogmind --------- Core Integrity 35/1600 Matter 290/300 Energy 97/100 System Corruption 4% Temperature Cool (0) Movement Core (50) Location Near Former Tau Ceti IV Parts ------- > --- POWER (3) -------- (None) > --- PROPULSION (6) --- (None) > --- UTILITY (10) ----- (None) > --- WEAPON (6) ------- (None) > --- INVENTORY (5) ---- Singularity Reactor High-capacity Matter Pod (26) Experimental Matter Compressor (500) Peak State ------------ > --- POWER ------------ Singularity Reactor > --- PROPULSION ------- Experimental Biometal Heavy Treads High-density Centrium Heavy Treads High-density Centrium Heavy Treads > --- UTILITY ---------- Experimental Cooling System Huge Storage Unit Assembled Combat Suite Experimental Targeting Computer Experimental Armor Integrity Analyzer Matter Filter Advanced Kinecellerator Heavy Regenerative Plating Experimental EM Disruption Field > --- WEAPON ----------- XL Autogun Array Omega Cannon > --- INVENTORY -------- Singularity Reactor Advanced Cooling System Experimental Energy Well Experimental Energy Well Experimental Energy Well High-capacity Matter Pod High-capacity Matter Pod Improved Matter Compressor Experimental Matter Compressor Experimental Target Analyzer Advanced Force Field Advanced Force Field Experimental System Purifier Long-range Tractor Beam Linked Autogun Multirail Multirail Multirail Multirail Advanced Remote Datajack [Rating: 243] Favorites ----------- Power Assembled Flux Generator Engine Improved Deuterium Engine Power Core Enhanced Nuclear Core Reactor Assembled Flux Generator Propulsion Light Treads Treads Light Treads Leg Assembled Alloy Leg Utility Huge Storage Unit Device GOLEM Unit Storage Huge Storage Unit Processor Experimental Core Analyzer Hackware Experimental Hacking Suite Protection Centrium Medium Armor Plating Weapon Assembled Focal Cannon Energy Gun Enhanced Quantum Rifle Energy Cannon Assembled Focal Cannon Ballistic Gun Precision Assault Rifle Ballistic Cannon Heavy Linear Accelerator Launcher Heavy Missile Launcher Special Weapon Remote Datajack Impact Weapon Makeshift Hammer Slashing Weapon Axe Build | -11 -10 -10 -10 -9 -8 -7 -7 -7 -7 -7 -6 -6 -6 -6 -6 -5 -5 -5 -5 -5 -5 -4 -4 -4 -4 -3 -3 -3 -3 -2 -1 -1 -1 ------- Run | Scr Mat Min Exi Min Mat Fac Low Low Zio Dee Pro Fac Low Low Dat Pro Fac Ext Cet Arc Hub Fac Upp Upp Zhi Pro Res Arm Lab Res Acc Com Ac0 Slots Evolved 18 | . . . . . 4 2 . . . . . 2 . . . . 2 . . . . 2 . . . . 2 . . 2 2 . . Power 2 | . . . . . . 1 . . . . . . . . . . . . . . . 1 . . . . . . . . . . . Propulsion 4 | . . . . . 2 . . . . . . . . . . . . . . . . . . . . . . . . 2 . . . Utility 8 | . . . . . 2 1 . . . . . 2 . . . . 2 . . . . . . . . . 1 . . . . . . Weapon 4 | . . . . . . . . . . . . . . . . . . . . . . 1 . . . . 1 . . . 2 . . Parts Attached 492 | 5 6 6 1 2 28 26 11 7 28 21 3 10 1 . 8 1 4 7 13 . 12 9 13 9 4 5 8 32 14 22 36 74 66 Power 17 | . . 2 . 1 3 2 . . 3 . . . . . . . . . . . . 1 . . . . . 1 1 . . 3 . Engine 9 | . . 2 . 1 3 1 . . 2 . . . . . . . . . . . . . . . . . . . . . . . . Core 2 | . . . . . . 1 . . 1 . . . . . . . . . . . . . . . . . . . . . . . . Reactor 6 | . . . . . . . . . . . . . . . . . . . . . . 1 . . . . . 1 1 . . 3 . Propulsion 44 | 2 . 2 . . 4 4 3 . 1 3 2 3 . . . . 2 3 1 . . . 1 . . . . . . 5 3 5 . Treads 37 | 2 . 1 . . 3 4 3 . 1 3 2 2 . . . . 2 3 1 . . . 1 . . . . . . 1 3 5 . Leg 7 | . . 1 . . 1 . . . . . . 1 . . . . . . . . . . . . . . . . . 4 . . . Wheel . | . . . . . . . . . . . . . . . . . . . . . . . . . . . . . . . . . . Hover . | . . . . . . . . . . . . . . . . . . . . . . . . . . . . . . . . . . Flight . | . . . . . . . . . . . . . . . . . . . . . . . . . . . . . . . . . . Utility 290 | 2 3 . . 1 9 7 4 3 12 6 . 7 1 . 6 1 2 4 12 . 6 8 11 7 4 5 7 22 11 13 26 44 46 Device 220 | 2 1 . . 1 4 3 4 3 5 2 . 4 1 . 3 1 1 2 2 . 2 4 7 7 2 4 7 22 5 13 25 40 43 Storage 8 | . 1 . . . 1 . . . 1 . . . . . . . . . . . . . 1 . . . . . . . . 1 3 Processor 11 | . . . . . 1 2 . . 2 . . . . . . . . . . . 1 . 1 . . . . . 1 . 1 2 . Hackware 3 | . . . . . . 1 . . . . . . . . . . . . . . . . . . . . . . 2 . . . . Protection 48 | . 1 . . . 3 1 . . 4 4 . 3 . . 3 . 1 2 10 . 3 4 2 . 2 1 . . 3 . . 1 . Artifact . | . . . . . . . . . . . . . . . . . . . . . . . . . . . . . . . . . . Weapon 141 | 1 3 2 1 . 12 13 4 4 12 12 1 . . . 2 . . . . . 6 . 1 2 . . 1 9 2 4 7 22 20 Energy Gun 4 | . . . . . . . . . . . . . . . . . . . . . . . . . . . . . 1 . 1 2 . Energy Cannon 13 | . . . . . . . . . . . . . . . . . . . . . 3 . . 1 . . 1 . . 2 1 5 . Ballistic Gun 68 | 1 1 2 1 . 5 8 2 2 6 2 . . . . . . . . . . 2 . . . . . . 7 1 2 3 10 13 Ballistic Cannon 16 | . . . . . . 3 . . . 1 1 . . . . . . . . . . . . . . . . . . . 2 4 5 Launcher 19 | . 2 . . . 1 . . 1 2 5 . . . . 2 . . . . . 1 . 1 1 . . . 2 . . . 1 . Special Weapon 3 | . . . . . . . . . 1 . . . . . . . . . . . . . . . . . . . . . . . 2 Impact Weapon 10 | . . . . . 5 . . . 1 4 . . . . . . . . . . . . . . . . . . . . . . . Slashing Weapon 8 | . . . . . 1 2 2 1 2 . . . . . . . . . . . . . . . . . . . . . . . . Piercing Weapon . | . . . . . . . . . . . . . . . . . . . . . . . . . . . . . . . . . . Special Melee Weapon . | . . . . . . . . . . . . . . . . . . . . . . . . . . . . . . . . . . Unidentified Prototypes 18 | . . . . . 1 4 . . . 2 . . . . . . . . . . 1 . . . 1 . . . 5 . 1 1 2 Corrupted Parts 1 | . . . . . . . . . . . . . . . . . . . 1 . . . . . . . . . . . . . . System Corruption 3 | . . . . . . . . . . . . . . . . . . . 3 . . . . . . . . . . . . . . Parts Lost 20 | . . 2 . . . 2 . . 1 1 3 . . . . . . 1 . . 1 2 . . . . . . . . 1 1 5 Power 1 | . . 1 . . . . . . . . . . . . . . . . . . . . . . . . . . . . . . . Propulsion 6 | . . 1 . . . 2 . . . 1 2 . . . . . . . . . . . . . . . . . . . . . . Utility 8 | . . . . . . . . . 1 . . . . . . . . 1 . . 1 2 . . . . . . . . . 1 2 Weapon 5 | . . . . . . . . . . . 1 . . . . . . . . . . . . . . . . . . . 1 . 3 Highest Loss Streak 3 | . . 1 . . . 1 . . 1 1 3 . . . . . . 1 . . 1 1 . . . . . . . . 1 1 3 To Critical Strikes 2 | . . . . . . . . . . . 1 . . . . . . . . . . . . . . . . . . . . . 1 Average Slot Usage (%) 84 | . 100 100 100 100 99 100 100 100 97 94 78 84 86 86 79 86 82 81 81 81 79 78 78 83 82 83 80 83 84 81 74 58 66 Engine 2 | . 14 14 14 14 8 12 7 7 6 4 . . . . . . . . . . . . . . . . . . . . . . . Core 1 | . . . . . . 2 7 7 6 4 . . . . . . . . . . . . . . . . . . . . . . . Reactor 4 | . . . . . . . . . . 2 7 6 6 6 6 6 5 4 5 5 5 10 10 10 10 10 9 9 9 8 8 4 3 Treads 16 | . 28 26 28 28 35 30 30 30 30 26 10 6 13 13 13 13 11 11 6 5 5 5 5 5 5 5 4 4 4 3 11 12 11 Leg 5 | . . 1 . . . . . . . 3 13 18 13 13 11 13 11 10 11 10 11 10 9 10 8 10 9 9 9 12 . . . Device 10 | . 12 . . 8 11 8 7 7 6 2 7 11 13 13 12 13 14 11 8 11 9 10 16 15 15 15 19 19 17 8 8 16 18 Storage 9 | . 14 14 14 14 9 7 7 7 6 8 15 13 13 13 13 13 11 11 11 11 11 10 9 10 10 10 9 9 8 8 8 7 5 Processor 8 | . . . . . . 13 15 15 15 16 7 6 6 6 6 6 5 5 5 5 7 7 2 5 5 5 4 4 4 8 9 7 7 Protection 8 | . 1 14 14 5 15 7 7 7 7 6 . 5 6 6 4 6 7 10 17 17 16 11 11 10 9 9 9 9 8 8 8 4 3 Energy Cannon 5 | . . . . . . . . . . 4 14 13 13 13 8 13 11 11 11 11 7 10 11 14 15 14 14 9 8 8 6 . . Ballistic Gun 5 | . 23 28 28 28 13 12 14 14 8 4 . . . . . . . . . . . . . . . . . 7 8 7 6 5 14 Naked Turns 9 | . . . . . . . . . . . . . . . . . . . . . . . . . . . . . . . . . 9 Heaviest Build 241 | 11 29 32 32 35 111 122 118 118 124 152 152 172 163 160 166 163 180 187 187 172 172 194 204 203 203 203 209 203 221 210 241 231 215 Greatest Support 265 | 40 40 40 40 40 80 80 83 80 88 96 60 76 60 60 60 60 60 60 60 60 80 60 80 60 60 60 60 60 60 120 235 265 265 Greatest Overweight (x) 57 | . . 1 . . 1 1 1 1 1 2 2 2 2 2 2 2 2 3 3 57 2 3 3 3 3 3 3 3 3 3 1 . . Average Overweight (x) 1 | . . . . . . 1 1 1 . 1 2 2 2 2 2 2 2 2 2 38 1 2 2 2 2 3 3 3 3 1 . . . Largest Inventory Capacity 25 | 8 15 15 15 15 25 25 25 25 25 25 25 25 25 25 25 25 25 25 25 25 25 25 25 25 25 25 25 25 25 25 25 25 25 Average Capacity 24 | 8 13 15 15 15 22 25 25 25 24 25 25 25 25 25 25 25 25 25 25 25 25 25 24 25 25 25 25 25 25 25 25 25 24 Most Carried 25 | 6 12 15 15 15 25 25 25 25 25 25 25 25 25 25 25 24 25 25 25 25 25 25 25 25 25 25 25 25 25 25 25 25 25 Average Carried 23 | 4 8 13 14 14 20 24 24 24 23 24 24 24 25 24 24 24 23 24 24 25 24 24 23 24 24 25 24 24 24 24 24 24 23 Final Capacity 25 | 8 15 15 15 15 25 25 25 25 25 25 25 25 25 25 25 25 25 25 25 25 25 25 25 25 25 25 25 25 25 25 25 25 5 Final Carried 25 | 4 11 15 15 15 25 25 25 25 25 25 24 25 25 25 24 24 25 25 25 25 25 24 25 25 25 25 25 25 25 25 25 25 5 Class Distribution -------------------- 35% | Scavenger-Mutant 24% | Golem 10% | Generator-Mutant 7% | Generator-Golem 6% | Scavenger-Executioner 4% | Mutant 3% | Commander-Golem Dominant Class ---------------- Mutant | -10/Materials Mutant | -10/Mines Mutant | -10/Exiles Scavenger-Mutant | -9/Mines Scavenger-Mutant | -8/Materials Scavenger-Mutant | -7/Factory Scavenger-Mutant | -7/Lower Caves Scavenger-Mutant | -7/Lower Caves Scavenger-Mutant | -7/Zion Scavenger-Mutant | -7/Deep Caves Golem | -6/Proximity Caves Golem | -6/Factory Golem | -6/Lower Caves Golem | -6/Lower Caves Golem | -6/Data Miner Golem | -5/Proximity Caves Golem | -5/Factory Commander-Golem | -5/Extension Mutant | -5/Cetus Golem | -5/Archives Golem | -5/Hub_04(d) Generator-Golem | -4/Factory Generator-Mutant | -4/Upper Caves Generator-Golem | -4/Upper Caves Generator-Golem | -4/Zhirov Generator-Mutant | -3/Proximity Caves Generator-Skirmisher | -3/Research Generator-Skirmisher | -3/Armory Generator-Golem | -3/Lab Generator-Mutant | -2/Research Generator-Executioner | -1/Access Scavenger-Executioner | -1/Command Scavenger-Executioner | -1/Access_0 Resources | -11 -10 -10 -10 -9 -8 -7 -7 -7 -7 -7 -6 -6 -6 -6 -6 -5 -5 -5 -5 -5 -5 -4 -4 -4 -4 -3 -3 -3 -3 -2 -1 -1 -1 ----------- Run | Scr Mat Min Exi Min Mat Fac Low Low Zio Dee Pro Fac Low Low Dat Pro Fac Ext Cet Arc Hub Fac Upp Upp Zhi Pro Res Arm Lab Res Acc Com Ac0 Matter Collected 17781 | 265 156 320 60 14 377 895 479 146 900 1014 79 100 33 6 162 163 40 65 138 . 729 90 234 186 20 60 300 962 169 495 928 5761 2435 Remotely 7019 | . . . . . . . . . . . . . . . 162 . . . . . 316 . . . . . 170 606 . 389 613 3129 1634 Salvage Created 27135 | 100 138 207 . . 594 1721 527 139 510 1213 1164 1021 64 225 6 196 483 2034 841 431 1136 286 199 482 338 240 971 2230 81 608 1886 5519 1545 Parts 1217 | 8 8 12 . . 31 70 24 3 46 25 46 50 2 9 . 5 17 74 49 16 61 19 12 24 3 8 26 142 8 43 74 205 97 Haulers Intercepted 11 | . . . . . 2 3 . . . . . 2 . . . . 1 . . . . . . . . . 3 . . . . . . Recyclers Shooed 13 | 1 1 1 . . 1 9 . . . . . . . . . . . . . . . . . . . . . . . . . . . Parts Field Recycled . | . . . . . . . . . . . . . . . . . . . . . . . . . . . . . . . . . . Retrieved Matter . | . . . . . . . . . . . . . . . . . . . . . . . . . . . . . . . . . . Parts Self-Destructed 130 | . . . . . . . 27 7 3 . 48 . 2 5 . 3 . . . . . . 10 15 2 8 . . . . . . . Prevented 6 | . . . . . . . . . . . . . . . . . . . . . . . . 6 . . . . . . . . . Kills | -11 -10 -10 -10 -9 -8 -7 -7 -7 -7 -7 -6 -6 -6 -6 -6 -5 -5 -5 -5 -5 -5 -4 -4 -4 -4 -3 -3 -3 -3 -2 -1 -1 -1 ------- Run | Scr Mat Min Exi Min Mat Fac Low Low Zio Dee Pro Fac Low Low Dat Pro Fac Ext Cet Arc Hub Fac Upp Upp Zhi Pro Res Arm Lab Res Acc Com Ac0 Combat Hostiles Destroyed 318 | . 2 7 . . 7 14 11 3 3 51 20 10 1 1 1 . 6 20 11 4 18 5 7 13 . 3 5 31 1 7 22 14 20 Melee 2 | . . . . . . . . . . 2 . . . . . . . . . . . . . . . . . . . . . . . Guns 91 | . 1 5 . . 6 14 11 2 2 2 . . . . . . . . . . 6 . . . . . . 10 . 1 3 14 14 Cannons 145 | . . . . . . . . . . 2 20 10 1 1 . . 6 20 11 4 6 5 4 7 . 3 4 16 1 4 14 . 6 AOE 67 | . 1 2 . . 1 . . 1 1 44 . . . . 1 . . . . . 4 . 3 5 . . . 4 . . . . . Classes Destroyed 31 | 2 3 1 . . 3 3 2 2 3 4 2 1 . . . . . 2 . . 1 . . . . . . . . . 1 1 . Worker 6 | . 1 . . . . 2 . . . . . . . . . . . . . . 1 . . . . . 2 . . . . . . Builder 7 | . 1 . . . 2 . . . . . . 2 . . . . . . . . . . . . . . 1 . . . 1 . . Tunneler 4 | 2 . . . . 1 . . . . . . . . . . . . . . . . . . . . . . . . 1 . . . Hauler 11 | . . . . . 2 3 . . . . . 2 . . . . 1 . . . . . . . . . 3 . . . . . . Recycler 23 | 1 1 . . . 1 11 . . . . . 1 . . . . 1 4 . . . . . . . . . . . . 1 2 . Minesweeper 2 | . . . . . . . 1 . . . . . . 1 . . . . . . . . . . . . . . . . . . . Mechanic 1 | . . . . . . . . . . . . . . . . . . . . . . . . . . . . . . . . 1 . Operator 5 | . . . . . . 1 . . . . . . . . . . . 1 . 1 2 . . . . . . . . . . . . Watcher 23 | . . . . . 1 1 . . . . . 3 . . . . 1 2 1 . 3 . . . . . 6 3 . . 1 1 . Swarmer 36 | . . 3 . . . 2 2 1 . . . . . . . . 4 . . . 4 . 5 9 . . . 6 . . . . . Saboteur 1 | . . . . . . . . . . . . 1 . . . . . . . . . . . . . . . . . . . . . Grunt 76 | . 2 4 . . 2 7 7 1 . . 9 6 1 1 . . . 6 6 . 6 . . 3 . . 2 6 . . 4 3 . Brawler 5 | . . . . . . . . . . . 4 . . . . . . . . . . . . . . . . . . . . 1 . Duelist 6 | . . . . . . . . . . . 3 1 . . . . . 2 . . . . . . . . . . . . . . . Protector 2 | . . . . . . . . . . . . . . . . . . . . . 1 . . . . . . 1 . . . . . Sentry 33 | . . . . . 5 1 . . . . 2 2 . . . . . 7 . 4 4 . . 1 . 1 1 1 . 2 2 . . Demolisher 2 | . . . . . . . . . . . . . . . . . . . . . . . . . . . . 2 . . . . . Specialist 2 | . . . . . . . . . . . . . . . . . . 1 . . . . . . . . . 1 . . . . . Hunter 14 | . . . . . . 1 1 . . . . . . . . . . . 2 . . . . . . 2 2 . . 2 2 2 . Programmer 41 | . . . . . . 3 . . . . 2 . . . . . 2 2 . . . 5 2 . . . . 13 . 3 7 2 . Heavy 1 | . . . . . . . . . . . . . . . . . . . . . . . . . . . . . . . 1 . . Behemoth 2 | . . . . . . . . . . . . . . . . . . 2 . . . . . . . . . . . . . . . Cetus Guard 3 | . . . . . . . . . . . . . . . . . . . 3 . . . . . . . . . . . . . . M Guard 2 | . . . . . . . . . . . . . . . . . . . . . . . . . . . . . . . . 2 . Enhanced Grunt 9 | . . . . . . . . . . . . . . . 1 . . . . . . . . . . . . . . . . . 8 Enhanced Hunter 4 | . . . . . . . . . . . . . . . . . . . . . . . . . . . . . . . . . 4 Enhanced Programmer 7 | . . . . . . . . . . . . . . . . . . . . . . . . . . . . . . . . . 7 Lightning 3 | . . . . . . . . . . . . . . . . . . . . . 3 . . . . . . . . . . . . Tracker 5 | . . . . . . . . . . . . . . . . . . . . . . . . . . . . 1 . . 4 . . Combat Programmer 5 | . . . . . . . . . . . . . . . . . . . . . . . . . . . . 1 . . 2 2 . Zionite 22 | . . . . . . . . . 22 . . . . . . . . . . . . . . . . . . . . . . . . Z-Technician 5 | . . . . . . . . . . 5 . . . . . . . . . . . . . . . . . . . . . . . Z-Light 6 | . . . . . . . . . . 6 . . . . . . . . . . . . . . . . . . . . . . . Samaritan 5 | . . . . . . . . 1 . . . . . 3 . 1 . . . . . . . . . . . . . . . . . Tinkerer 3 | . . . . . . . . . 3 . . . . . . . . . . . . . . . . . . . . . . . . Thief 1 | . . . . . . . . 1 . . . . . . . . . . . . . . . . . . . . . . . . . Assembler 2 | . . . . . . . . . . 2 . . . . . . . . . . . . . . . . . . . . . . . Assembled 40 | . . . . . . . . . . 40 . . . . . . . . . . . . . . . . . . . . . . . Golem 5 | . . . . . . . . . . 5 . . . . . . . . . . . . . . . . . . . . . . . Savage 3 | . . . . . . . . . . . . . . . . . . 2 1 . . . . . . . . . . . . . . Martyr 1 | . . . . . . . . . 1 . . . . . . . . . . . . . . . . . . . . . . . . Mutant 2 | . . . . . . . 1 . 1 . . . . . . . . . . . . . . . . . . . . . . . . Best Kill Streak 39 | 1 4 2 . . 3 7 5 1 4 39 11 7 1 2 1 . 4 5 3 2 9 5 5 8 . 2 5 8 1 3 6 6 5 Combat Bots Only 37 | . 2 2 . . 2 3 5 1 1 37 11 5 1 1 1 . 4 5 3 2 8 5 5 8 . 2 2 6 1 3 5 6 5 Max Kills in Single Turn 27 | 1 2 2 . . 2 2 1 1 2 27 2 2 1 1 1 1 1 2 1 1 2 1 3 3 . 1 2 4 1 1 1 1 1 Gunslinging 1 | . . . . . . 1 . . . . . . . . . . . . . . . . . . . . . . . . . . . Exploded 27 | . 1 2 . . 1 . . 1 1 27 . . . . 1 . . . . . 2 . 3 3 . . . 4 . . . . . Melee 1 | . . . . . . . . . . 1 . . . . . . . . . . . . . . . . . . . . . . . Uniques/NPCs Destroyed 6 | . . . . . . . . . 1 . . . . . . . . . 1 . . . . . . . . . 1 . . 2 1 Imprinter (-7/Zion) Revision 17 (-5/Cetus) A5 (-3/Lab) MAIN.C Shell (-1/Command) MAIN.C (-1/Command) Architect (-1/Access_0) Combat | -11 -10 -10 -10 -9 -8 -7 -7 -7 -7 -7 -6 -6 -6 -6 -6 -5 -5 -5 -5 -5 -5 -4 -4 -4 -4 -3 -3 -3 -3 -2 -1 -1 -1 -------- Run | Scr Mat Min Exi Min Mat Fac Low Low Zio Dee Pro Fac Low Low Dat Pro Fac Ext Cet Arc Hub Fac Upp Upp Zhi Pro Res Arm Lab Res Acc Com Ac0 Damage Taken 22041 | . 76 375 . . 368 946 348 36 293 849 1427 332 175 58 48 258 102 868 594 126 2666 256 498 329 . 315 57 651 39 117 750 2208 6876 Core 1968 | . 32 14 . . 15 73 55 13 62 61 155 17 . . . . . 44 17 . 179 4 92 18 . 17 . 39 . . 18 24 1019 Absorbed by Shields 6423 | . . . . . 68 156 68 4 16 . . 108 . . . . 32 69 61 . . . 42 296 . 69 63 283 44 30 559 1586 2869 Reduced by Siege Mode 747 | . . . . . . . . . . . . . . . . . . . . . 126 . . . . . . 13 1 . 49 301 257 Redirected to Shielding 278 | . . 3 . . 3 . . . . 20 . . . . . . . . . . . 4 85 . . . . . . . . 163 . Regen/Repaired (Parts) 4666 | . 290 . . . . . . . . . . 318 . . . . . . . . . . . . . . . . . 405 184 607 2862 Core Remaining (%) 78 | 100 . . . 81 97 . . . . . 40 . . . . 98 . . . . 76 . . . . 88 . . 100 100 . . 2 Volleys Fired 1327 | 9 11 34 . . 42 96 31 6 51 35 42 42 5 8 3 8 20 59 27 18 87 38 8 16 13 9 27 80 15 28 72 205 182 Largest 5 | 2 2 2 . . 2 2 2 2 2 2 2 2 2 2 2 2 2 2 2 2 2 1 2 3 1 3 3 4 2 4 5 4 5 Hottest 303 | 40 40 40 . . 46 68 56 56 78 78 65 50 50 50 78 50 50 50 50 50 70 70 50 75 25 75 75 130 50 145 303 303 205 Shots Fired 2756 | 18 17 67 . . 83 190 59 9 93 45 84 74 10 17 6 16 30 112 50 32 130 38 12 31 13 21 29 213 26 53 168 384 626 Gun 1632 | 18 12 66 . . 82 187 59 6 80 8 . . . . . . . . . . 46 . . . . . . 100 . 22 68 302 576 Cannon 1063 | . . . . . . 3 . . . 19 84 74 10 17 . 16 30 112 50 32 81 38 11 27 13 21 29 112 26 31 100 81 46 Launcher 56 | . 5 1 . . 1 . . 3 12 18 . . . . 6 . . . . . 3 . 1 4 . . . 1 . . . 1 . Special 5 | . . . . . . . . . 1 . . . . . . . . . . . . . . . . . . . . . . . 4 Kinetic 1642 | 18 12 66 . . 82 190 59 6 80 9 9 . . . . . . . . . 46 . . . . . . 100 . 22 55 266 622 Thermal 990 | . . . . . . . . . . 18 75 74 10 17 . 16 30 112 50 32 64 35 11 24 13 21 9 109 26 27 100 117 . Explosive 56 | . 5 1 . . 1 . . 3 12 18 . . . . 6 . . . . . 3 . 1 4 . . . 1 . . . 1 . Electromagnetic 63 | . . . . . . . . . . . . . . . . . . . . . 17 3 . 3 . . 20 3 . 4 13 . . Robot Hit Streak 74 | 9 13 10 . . 12 18 38 21 22 13 19 18 1 6 4 5 12 21 16 9 14 15 20 27 13 15 12 17 25 48 74 71 43 Robot Miss Streak 4 | 2 1 4 . . 3 4 1 . 2 3 2 2 3 1 1 1 1 3 3 2 3 1 . 3 . 1 1 2 . . 4 3 4 Penetration Max 1 | . . . . . . . . . . . . . . . . . . . . . 1 . . . . . 1 1 . 1 . . . Secondary Targets 13 | . . . . . . 2 2 . 1 . . . . . . . . . . . 4 . . . . . . 1 . . . 1 2 Max Gunslinging Chain 1 | . . . . . . 1 1 . 1 . . . . . . . . . . . 1 . . . . . . 1 . . . 1 1 Shots Hit Robots 1891 | 14 13 42 . . 61 148 51 7 65 48 53 40 2 11 4 5 12 72 34 23 79 16 5 16 13 13 18 115 22 23 90 267 509 Core Hits 1149 | 7 9 15 . . 27 55 24 10 32 109 24 22 1 6 5 4 7 35 20 10 45 4 6 12 5 6 15 58 9 9 41 211 306 Critical Kills 16 | . . . . . 1 . . . . 2 . . . . . . . . . . 3 . . . . . . 8 . 1 1 . . Critical Parts Destroyed 29 | . . . . . . 1 . . 1 3 . . . . . . . . . . 6 . . . . . . 16 . 2 . . . Critical Strikes 66 | . . . . . 1 1 . . 1 5 . . . . . . . . . . 11 . . 2 . . 6 26 . 5 4 . 4 Destroy 43 | . . . . . 1 1 . . 1 . . . . . . . . . . . 9 . . . . . . 25 . 5 1 . . Blast 4 | . . . . . . . . . . . . . . . . . . . . . . . . . . . . . . . . . 4 Corrupt 14 | . . . . . . . . . . . . . . . . . . . . . 2 . . 2 . . 6 1 . . 3 . . Smash 5 | . . . . . . . . . . 5 . . . . . . . . . . . . . . . . . . . . . . . Melee Attacks 700 | . . . . . 16 5 2 2 648 27 . . . . . . . . . . . . . . . . . . . . . . . Impact 43 | . . . . . 15 . . . 1 27 . . . . . . . . . . . . . . . . . . . . . . . Slashing 657 | . . . . . 1 5 2 2 647 . . . . . . . . . . . . . . . . . . . . . . . . Piercing . | . . . . . . . . . . . . . . . . . . . . . . . . . . . . . . . . . . Sneak Attacks 8 | . . . . . 2 . . . 1 5 . . . . . . . . . . . . . . . . . . . . . . . Combat Hostiles . | . . . . . . . . . . . . . . . . . . . . . . . . . . . . . . . . . . Follow-up Attacks . | . . . . . . . . . . . . . . . . . . . . . . . . . . . . . . . . . . Damage Inflicted 75914 | 109 323 536 . 30 1046 2657 943 519 1796 5703 2590 2127 114 509 292 291 644 4139 1842 1059 3714 1021 497 1232 511 598 1488 4148 742 928 4228 13778 15760 Guns 34176 | 109 106 427 . . 683 2583 943 121 1117 131 . . . . . . . . . . 1131 . . . . . . 516 . 99 1227 11664 13319 Cannons 32733 | . . . . . . 31 . . . 612 2590 2127 114 509 . 291 644 4139 1842 1059 2050 1021 314 837 511 598 1406 2995 742 829 2917 2114 2441 Explosions 6915 | . 217 79 . . 143 . . 338 586 3439 . . . . 285 . . . . . 533 . 183 395 . . 82 635 . . . . . Melee 1868 | . . . . . 194 . . 60 93 1521 . . . . . . . . . . . . . . . . . . . . . . . Ramming 222 | . . 30 . 30 26 43 . . . . . . . . 7 . . . . . . . . . . . . 2 . . 84 . . Kinetic 35389 | 109 106 427 . . 683 2614 943 121 1117 164 145 . . . . . . . . . 1131 . . . . . . 516 . 99 934 10520 15760 Thermal 28076 | . . . . . . . . . . 579 2445 2127 114 509 . 291 644 4139 1842 1059 1222 929 314 667 511 598 184 2898 742 538 2466 3258 . Explosive 6823 | . 217 79 . . 143 . . 338 586 3439 . . . . 285 . . . . . 523 . 183 395 . . . 635 . . . . . Electromagnetic 3536 | . . . . . . . . . . . . . . . . . . . . . 838 92 . 170 . . 1304 97 . 291 744 . . Impact 1715 | . . . . . 194 . . . . 1521 . . . . . . . . . . . . . . . . . . . . . . . Slashing 153 | . . . . . . . . 60 93 . . . . . . . . . . . . . . . . . . . . . . . . Piercing . | . . . . . . . . . . . . . . . . . . . . . . . . . . . . . . . . . . Highest Corruption 17 | . . . . . . 3 3 3 3 . . 1 1 1 1 1 . . 3 . 17 . 1 . . . . 1 2 . 3 7 4 Average Corruption 3 | . . . . . . 2 3 3 3 . . 1 1 1 1 1 . . 2 . 15 . 1 . . . . 1 1 . 1 6 2 Corruption Purged 11 | . . . . . . . . . . . . . . . . . . . 3 . . . 1 . . . . . . . . 7 . Corruption Blocked . | . . . . . . . . . . . . . . . . . . . . . . . . . . . . . . . . . . Effects 204 | . . . . . . 13 14 12 1 . . . 6 6 7 2 . . 5 . 25 . . . . . . 1 12 . 15 72 13 Message Errors 53 | . . . . . . 5 3 4 . . . . 1 4 2 . . . 1 . 5 . . . . . . 1 6 . 2 17 2 Matter Fused 51 | . . . . . . 4 3 1 . . . . 3 1 1 . . . 1 . 4 . . . . . . . 2 . 9 19 3 Heat Flow Errors 26 | . . . . . . 2 2 3 . . . . 1 . . . . . 1 . 5 . . . . . . . 1 . 2 7 2 Energy Discharges 21 | . . . . . . 1 4 2 1 . . . 1 . . . . . . . 1 . . . . . . . 1 . 1 9 . Data Loss (minor) 27 | . . . . . . . 1 2 . . . . . . 2 1 . . 1 . 5 . . . . . . . 1 . . 14 . Data Loss (major) 3 | . . . . . . 1 . . . . . . . . 1 . . . . . . . . . . . . . . . . . 1 Misfires 10 | . . . . . . . . . . . . . . 1 . . . . 1 . 1 . . . . . . . . . 1 4 2 Alerts 4 | . . . . . . . . . . . . . . . 1 1 . . . . . . . . . . . . 1 . . 1 . Weapon Failures 9 | . . . . . . . 1 . . . . . . . . . . . . . 4 . . . . . . . . . . 1 3 Overload Shots . | . . . . . . . . . . . . . . . . . . . . . . . . . . . . . . . . . . Overflow Damage 2497 | . . . . . . . . . 23 810 97 154 . 50 . 44 48 149 11 . 208 155 27 49 80 . 109 126 15 23 111 65 143 Projectiles 1556 | . . . . . . . . . . . 97 154 . 50 . 44 48 149 11 . 138 155 27 35 80 . 109 126 15 23 87 65 143 Explosions 161 | . . . . . . . . . 14 63 . . . . . . . . . . 70 . . 14 . . . . . . . . . Melee 780 | . . . . . . . . . 9 747 . . . . . . . . . . . . . . . . . . . . 24 . . Knockbacks 21 | . . . . . . . . . . 2 1 . . . . . . . . . . . . . . . . . . . 3 2 13 Impact 4 | . . . . . . . . . . 2 . . . . . . . . . . . . . . . . . . . . 2 . . Kinetic 17 | . . . . . . . . . . . 1 . . . . . . . . . . . . . . . . . . . 1 2 13 Secondary . | . . . . . . . . . . . . . . . . . . . . . . . . . . . . . . . . . . Self-Inflicted Damage 276 | . 32 . . . . . . . 31 96 . . . . . . . . . . 75 . . 42 . . . . . . . . . Shots 6 | . 1 . . . . . . . 1 2 . . . . . . . . . . 1 . . 1 . . . . . . . . . Rammed 18 | 1 . 4 . 6 1 4 . . . . . . . . . . . . . . . . . . . . . . . . 2 . . Targets Rammed 21 | 1 . 4 . 6 2 4 . . . . . . . . 1 . . . . . . . . . . . . 1 . . 2 . . Kicked 2 | . . . . . . . . . . . . . . . 1 . . . . . . . . . . . . 1 . . . . . Crushed 1 | . . . . . 1 . . . . . . . . . . . . . . . . . . . . . . . . . . . . Highest Temperature 446 | . 6 43 . . 431 234 275 274 45 123 45 1 197 . . . . 37 230 . 268 88 18 193 . . 8 72 118 . 446 166 155 Average Temperature 43 | . 5 15 . . 38 32 34 105 9 41 13 1 109 . . . . 14 55 . 60 39 9 64 . . 7 21 71 . 104 55 34 Received Heat Transfer 2585 | . 24 240 . . 126 227 102 . . 107 430 76 81 27 . 36 . 210 74 18 570 . 27 31 . 4 9 119 . . 17 24 6 Effects 4 | . . . . . 1 . . . . . . . . . . . . . . . 3 . . . . . . . . . . . . Energy Bleed 1 | . . . . . 1 . . . . . . . . . . . . . . . . . . . . . . . . . . . . Interference 3 | . . . . . . . . . . . . . . . . . . . . . 3 . . . . . . . . . . . . Siege Activations 17 | . . . . . . . . . . . . . . . . . . . . . 2 . . . . . . 4 1 2 3 2 3 Total Turns 407 | . . . . . . . . . . . . . . . . . . . . . 103 . . . . . . 81 38 16 40 61 68 Longest Duration 99 | . . . . . . . . . . . . . . . . . . . . . 99 . . . . . . 44 38 9 18 36 37 Robots Corrupted 17 | . . . . . . . . . . . . . . . . . . . . . 4 . . 1 . . 4 1 . 2 5 . . Combat Hostiles 12 | . . . . . . . . . . . . . . . . . . . . . 2 . . 1 . . 1 1 . 2 5 . . Parts Fried 48 | . . . . . . . . . . 7 . . . . . . . 2 . . 3 . . 2 . . 21 4 . . 7 2 . Impact Corruptions 21 | . . . . . . . . . . 19 . . . . . . . . . . . . . . . . . . . . 2 . . Robots Melted . | . . . . . . . . . . . . . . . . . . . . . . . . . . . . . . . . . . Combat Hostiles . | . . . . . . . . . . . . . . . . . . . . . . . . . . . . . . . . . . Parts Melted 21 | . . . . . . . 2 . . . . . . . . . . 7 . . . . . 1 . 1 1 1 . . 8 . . Heat Transferred 13986 | . . . . . . . . . . 325 1300 1125 50 275 . 125 300 2025 925 550 533 375 125 350 325 325 100 1412 459 250 1744 988 . Parts Sabotaged . | . . . . . . . . . . . . . . . . . . . . . . . . . . . . . . . . . . Parts Stolen . | . . . . . . . . . . . . . . . . . . . . . . . . . . . . . . . . . . Parts Stripped . | . . . . . . . . . . . . . . . . . . . . . . . . . . . . . . . . . . Power Chain Reactions 1 | . . . . . . . . . . . . . . . . . . . . . . . . . . . 1 . . . . . . Missiles Intercepted . | . . . . . . . . . . . . . . . . . . . . . . . . . . . . . . . . . . Alert | -11 -10 -10 -10 -9 -8 -7 -7 -7 -7 -7 -6 -6 -6 -6 -6 -5 -5 -5 -5 -5 -5 -4 -4 -4 -4 -3 -3 -3 -3 -2 -1 -1 -1 ------- Run | Scr Mat Min Exi Min Mat Fac Low Low Zio Dee Pro Fac Low Low Dat Pro Fac Ext Cet Arc Hub Fac Upp Upp Zhi Pro Res Arm Lab Res Acc Com Ac0 Peak Influence 886 | 15 209 223 . . 280 282 . . . . . 429 . . . . 298 886 750 393 669 461 . . . . 247 720 . 151 511 378 . Initial 476 | . 9 4 . . . 52 . . . . . 36 . . . . . 100 476 258 2 304 . . . . . 29 . . 90 189 . Average 144 | 8 66 119 . . 121 110 . . . . . 119 . . . . 189 131 591 38 287 316 . . . . 148 339 . 46 230 252 . Maximum Alert Level 3 | . 1 1 . . 1 1 . . . . . 2 . . . . 1 3 3 1 2 2 . . . . 1 3 . . 2 2 . Low Security (%) 55 | 100 86 67 . 100 82 76 . . . . . 76 . . . . 49 79 . 92 42 4 . . . . 52 32 . 100 35 2 . Level 1 31 | . 13 32 . . 17 23 . . . . . 20 . . . . 50 12 3 7 21 92 . . . . 47 30 . . 57 63 . Level 2 12 | . . . . . . . . . . . . 3 . . . . . 5 71 . 36 3 . . . . . 33 . . 6 33 . Level 3 . | . . . . . . . . . . . . . . . . . . 3 24 . . . . . . . . 3 . . . . . Level 4 . | . . . . . . . . . . . . . . . . . . . . . . . . . . . . . . . . . . Level 5 . | . . . . . . . . . . . . . . . . . . . . . . . . . . . . . . . . . . High Security . | . . . . . . . . . . . . . . . . . . . . . . . . . . . . . . . . . . Max Security . | . . . . . . . . . . . . . . . . . . . . . . . . . . . . . . . . . . Squads Dispatched 54 | . 3 . . . 2 6 . . . . 1 5 . . . . 2 2 1 . 6 3 . . . . 1 8 . 2 10 2 . Investigation 9 | . 3 . . . 1 . . . . . . . . . . . . 1 1 . 2 . . . . . . . . . 1 . . Extermination 17 | . . . . . . 2 . . . . . 2 . . . . 1 . . . . 2 . . . . . 4 . 2 3 1 . Reinforcement 13 | . . . . . 1 4 . . . . . 2 . . . . . . . . 3 . . . . . 1 1 . . . 1 . Assault 7 | . . . . . . . . . . . 1 1 . . . . 1 1 . . 1 1 . . . . . 1 . . . . . Garrison . | . . . . . . . . . . . . . . . . . . . . . . . . . . . . . . . . . . Intercept 8 | . . . . . . . . . . . . . . . . . . . . . . . . . . . . 2 . . 6 . . Searches Triggered . | . . . . . . . . . . . . . . . . . . . . . . . . . . . . . . . . . . Construction Impeded 1 | . . . . . . . . . . . . 1 . . . . . . . . . . . . . . . . . . . . . Haulers Reinforced 5 | . . . . . . 3 . . . . . 1 . . . . . . . . . . . . . . 1 . . . . . . Active Scanning Responses . | . . . . . . . . . . . . . . . . . . . . . . . . . . . . . . . . . . Cargo Convoy Interrupts . | . . . . . . . . . . . . . . . . . . . . . . . . . . . . . . . . . . Stealth | -11 -10 -10 -10 -9 -8 -7 -7 -7 -7 -7 -6 -6 -6 -6 -6 -5 -5 -5 -5 -5 -5 -4 -4 -4 -4 -3 -3 -3 -3 -2 -1 -1 -1 --------- Run | Scr Mat Min Exi Min Mat Fac Low Low Zio Dee Pro Fac Low Low Dat Pro Fac Ext Cet Arc Hub Fac Upp Upp Zhi Pro Res Arm Lab Res Acc Com Ac0 Distress Signals 37 | . . . . . 1 4 . . . . . . . . . . 1 4 2 . 3 . . . . . 2 . . . . 20 . Communications Jammed 48 | . . . . . . . . . . . . . . . . . . . . . . . . . . . 3 35 . . 10 . . Distress Signals 45 | . . . . . . . . . . . . . . . . . . . . . . . . . . . 3 35 . . 7 . . Times Spotted 455 | . 2 6 . . 15 24 15 5 33 48 22 20 4 5 1 1 9 36 18 2 27 7 8 13 . 3 8 35 1 6 19 15 47 Peak Tracking Total 37 | . 2 2 . . 4 4 5 3 3 37 10 5 3 4 1 1 4 6 5 1 7 5 5 5 . 2 2 5 1 3 5 4 6 Tactical Retreats 22 | . . 1 . . 1 2 . . 11 . . . . . . . 1 3 . . 1 . 1 . . . . . . . 1 . . Traps | -11 -10 -10 -10 -9 -8 -7 -7 -7 -7 -7 -6 -6 -6 -6 -6 -5 -5 -5 -5 -5 -5 -4 -4 -4 -4 -3 -3 -3 -3 -2 -1 -1 -1 ------- Run | Scr Mat Min Exi Min Mat Fac Low Low Zio Dee Pro Fac Low Low Dat Pro Fac Ext Cet Arc Hub Fac Upp Upp Zhi Pro Res Arm Lab Res Acc Com Ac0 Traps Triggered 4 | . 2 . . . . . . . . . . . . . . . . . . . . . . . . . . . . . 2 . . Indirectly . | . . . . . . . . . . . . . . . . . . . . . . . . . . . . . . . . . . Trap Hack Attempts . | . . . . . . . . . . . . . . . . . . . . . . . . . . . . . . . . . . Triggered . | . . . . . . . . . . . . . . . . . . . . . . . . . . . . . . . . . . Disarmed . | . . . . . . . . . . . . . . . . . . . . . . . . . . . . . . . . . . Reprogrammed . | . . . . . . . . . . . . . . . . . . . . . . . . . . . . . . . . . . Reused 5 | . . . . . . . . . . 3 . . . . 2 . . . . . . . . . . . . . . . . . . Traps Extracted . | . . . . . . . . . . . . . . . . . . . . . . . . . . . . . . . . . . Installed 9 | . . . . . . . . . . 4 . . . . 5 . . . . . . . . . . . . . . . . . . Triggered 2 | . . . . . . . . . . . . . . . . . . . . . . . . . . . . . . . . 2 . Fabricated Traps 7 | . . . . . . . . . . 4 . . . . 3 . . . . . . . . . . . . . . . . . . Most Traps Carried 3 | . . . . . . . 3 3 1 . . . . 2 2 . . . . . . . . . . . . . . . . . . Exploded 1 | . . . 1 . . . . . . . . . . . . . . . . . . . . . . . . . . . . . . Machines | -11 -10 -10 -10 -9 -8 -7 -7 -7 -7 -7 -6 -6 -6 -6 -6 -5 -5 -5 -5 -5 -5 -4 -4 -4 -4 -3 -3 -3 -3 -2 -1 -1 -1 ---------- Run | Scr Mat Min Exi Min Mat Fac Low Low Zio Dee Pro Fac Low Low Dat Pro Fac Ext Cet Arc Hub Fac Upp Upp Zhi Pro Res Arm Lab Res Acc Com Ac0 Machines Disabled 62 | . . 1 . . 2 . 1 . 11 2 . 5 . . . . 1 7 2 1 9 2 . . . . . 6 1 1 2 2 6 Max in Single Turn 2 | . . 1 . . 1 . 1 . 1 1 . 2 . . . . 1 1 1 1 1 1 . . . . . 1 1 1 1 1 1 Garrison Access 6 | . . . . . . . . . . . . 1 . . . . 1 . . . 2 1 . . . . . . . . 1 . . Network Hub 2 | . . . . . . . . . . . . . . . . . . . . . 2 . . . . . . . . . . . . Machines Sabotaged 1 | . . . . . . . . . . . . . . . . . . . . . 1 . . . . . . . . . . . . Garrisons Compromised . | . . . . . . . . . . . . . . . . . . . . . . . . . . . . . . . . . . Overloaded Fab Kills . | . . . . . . . . . . . . . . . . . . . . . . . . . . . . . . . . . . Hacking | -11 -10 -10 -10 -9 -8 -7 -7 -7 -7 -7 -6 -6 -6 -6 -6 -5 -5 -5 -5 -5 -5 -4 -4 -4 -4 -3 -3 -3 -3 -2 -1 -1 -1 --------- Run | Scr Mat Min Exi Min Mat Fac Low Low Zio Dee Pro Fac Low Low Dat Pro Fac Ext Cet Arc Hub Fac Upp Upp Zhi Pro Res Arm Lab Res Acc Com Ac0 Machines Accessed 78 | . 4 . 2 . 4 8 . . . . . 7 1 . 4 1 2 11 1 . 7 3 . . 4 . 2 5 1 2 8 1 . Terminals 41 | . 2 . . . 3 3 . . . . . 2 . . . 1 1 11 1 . 5 3 . . . . 1 2 . 1 4 1 . Fabricators 9 | . . . . . . 3 . . . . . 2 . . . . . . . . . . . . . . 1 3 . . . . . Repair Stations 5 | . 1 . . . . 1 . . . . . 1 . . . . . . . . . . . . . . . . . 1 1 . . Recycling Units 4 | . 1 . . . 1 1 . . . . . 1 . . . . . . . . . . . . . . . . . . . . . Scanalyzers 2 | . . . . . . . . . . . . 1 . . . . . . . . . . . . . . . . . . 1 . . Garrison Access 5 | . . . . . . . . . . . . . . . . . 1 . . . 2 . . . . . . . . . 2 . . Total Hacks 254 | . 14 . 2 . 16 22 . . . . . 15 1 . 31 1 2 29 2 . 17 9 . . 13 . 7 18 20 11 23 1 . Successful 145 | . 6 . 2 . 9 11 . . . . . 7 1 . 31 1 1 13 . . 5 3 . . 13 . 4 6 20 4 7 1 . Failed 109 | . 8 . . . 7 11 . . . . . 8 . . . . 1 16 2 . 12 6 . . . . 3 12 . 7 16 . . Catastrophic 24 | . 1 . . . . . . . . . . . . . . . 1 2 2 . 4 1 . . . . 1 4 . . 8 . . Database Lockouts . | . . . . . . . . . . . . . . . . . . . . . . . . . . . . . . . . . . Manual 68 | . 9 . 1 . 3 8 . . 3 . . 8 . . . . . 7 1 . 4 4 . . . . 3 10 . . 7 . . Terminals 128 | . 8 . . . 15 12 . . . . . 5 . . . 1 1 29 2 . 14 9 . . . . 3 5 . 7 16 1 . Fabricators 27 | . . . . . . 6 . . . . . 4 . . . . . . . . . . . . . . 4 13 . . . . . Repair Stations 15 | . 5 . . . . 1 . . . . . 2 . . . . . . . . . . . . . . . . . 4 3 . . Recycling Units 7 | . 1 . . . 1 3 . . . . . 2 . . . . . . . . . . . . . . . . . . . . . Scanalyzers 3 | . . . . . . . . . . . . 2 . . . . . . . . . . . . . . . . . . 1 . . Garrison Access 7 | . . . . . . . . . . . . . . . . . 1 . . . 3 . . . . . . . . . 3 . . Terminal Hacks 110 | . 1 . 2 . 7 5 . . . . . 1 1 . 31 1 1 12 . . 3 3 . . 13 . 1 2 20 1 4 1 . Record 38 | . . . 1 . . . . . . . . . . . 11 1 . . . . . . . . 5 . . . 20 . . . . Part Schematic 15 | . . . . . . . . . . . . . . . 11 . . . . . . . . . 4 . . . . . . . . Robot Schematic 7 | . . . . . . . . . . . . . . . 6 . . 1 . . . . . . . . . . . . . . . Robot Analysis 1 | . 1 . . . . . . . . . . . . . . . . . . . . . . . . . . . . . . . . Prototype ID Bank 11 | . . . . . 1 1 . . . . . . . . 3 . . 2 . . . . . . 4 . . . . . . . . Open Door 11 | . . . . . . . . . . . . . 1 . . . 1 4 . . . . . . . . . 1 . . 3 1 . Level Access Points 1 | . . . . . . . . . . . . . . . . . . . . . . . . . . . . . . 1 . . . Branch Access Points 4 | . . . . . 1 1 . . . . . 1 . . . . . . . . . 1 . . . . . . . . . . . Terminal Index 1 | . . . . . 1 . . . . . . . . . . . . . . . . . . . . . . . . . . . . Alert Level 1 | . . . . . . . . . . . . . . . . . . . . . . . . . . . 1 . . . . . . Unreport Threat 6 | . . . . . . . . . . . . . . . . . . 3 . . 1 1 . . . . . . . . 1 . . Locate Traps 4 | . . . . . 2 . . . . . . . . . . . . 1 . . . . . . . . . 1 . . . . . Hauler Manifests 3 | . . . . . 1 1 . . . . . . . . . . . 1 . . . . . . . . . . . . . . . Registered Components 1 | . . . . . 1 . . . . . . . . . . . . . . . . . . . . . . . . . . . . Zone Layout 5 | . . . . . . 2 . . . . . . . . . . . . . . 2 1 . . . . . . . . . . . EX-Prototype ID Bank 1 | . . . 1 . . . . . . . . . . . . . . . . . . . . . . . . . . . . . . Fabricator Hacks 4 | . . . . . . 1 . . . . . 1 . . . . . . . . . . . . . . 1 1 . . . . . Network Status 3 | . . . . . . 1 . . . . . 1 . . . . . . . . . . . . . . 1 . . . . . . Load Schematic 1 | . . . . . . . . . . . . . . . . . . . . . . . . . . . . 1 . . . . . Repair Station Hacks 11 | . 4 . . . . . . . . . . 2 . . . . . . . . . . . . . . . . . 3 2 . . Scan Component 6 | . 2 . . . . . . . . . . 1 . . . . . . . . . . . . . . . . . 2 1 . . Repair 5 | . 2 . . . . . . . . . . 1 . . . . . . . . . . . . . . . . . 1 1 . . Recycling Unit Hacks . | . . . . . . . . . . . . . . . . . . . . . . . . . . . . . . . . . . Scanalyzer 1 | . . . . . . . . . . . . 1 . . . . . . . . . . . . . . . . . . . . . Insert Component 1 | . . . . . . . . . . . . 1 . . . . . . . . . . . . . . . . . . . . . Garrison Access Hacks 2 | . . . . . . . . . . . . . . . . . . . . . 1 . . . . . . . . . 1 . . Seal Access 2 | . . . . . . . . . . . . . . . . . . . . . 1 . . . . . . . . . 1 . . Unauthorized Hacks 17 | . 1 . . . 2 5 . . . . . 2 . . . . . 1 . . 1 . . . . . 2 3 . . . . . Terminals 3 | . . . . . 1 . . . . . . . . . . . . 1 . . 1 . . . . . . . . . . . . Assimilate 1 | . . . . . 1 . . . . . . . . . . . . . . . . . . . . . . . . . . . . Operators 1 | . . . . . . . . . . . . . . . . . . 1 . . . . . . . . . . . . . . . Sabotage 1 | . . . . . . . . . . . . . . . . . . . . . 1 . . . . . . . . . . . . Fabricators 9 | . . . . . . 4 . . . . . . . . . . . . . . . . . . . . 2 3 . . . . . Liberate 1 | . . . . . . . . . . . . . . . . . . . . . . . . . . . 1 . . . . . . Fabnet 6 | . . . . . . 3 . . . . . . . . . . . . . . . . . . . . . 3 . . . . . Haulers 2 | . . . . . . 1 . . . . . . . . . . . . . . . . . . . . 1 . . . . . . Repair Stations . | . . . . . . . . . . . . . . . . . . . . . . . . . . . . . . . . . . Recycling Units 5 | . 1 . . . 1 1 . . . . . 2 . . . . . . . . . . . . . . . . . . . . . Reject 2 | . . . . . . 1 . . . . . 1 . . . . . . . . . . . . . . . . . . . . . Recyclers 1 | . . . . . . . . . . . . 1 . . . . . . . . . . . . . . . . . . . . . Tunnel 2 | . 1 . . . 1 . . . . . . . . . . . . . . . . . . . . . . . . . . . . Scanalyzers . | . . . . . . . . . . . . . . . . . . . . . . . . . . . . . . . . . . Garrison Access . | . . . . . . . . . . . . . . . . . . . . . . . . . . . . . . . . . . Data Cores Recovered . | . . . . . . . . . . . . . . . . . . . . . . . . . . . . . . . . . . Used . | . . . . . . . . . . . . . . . . . . . . . . . . . . . . . . . . . . Hacking Detections 56 | . 3 . . . 3 7 . . . . . 7 . . . . 1 9 1 . 5 3 . . . . 2 5 . 2 8 . . Full Trace Events 4 | . . . . . . . . . . . . . . . . . . 1 1 . 1 . . . . . . . . . 1 . . Feedback Events . | . . . . . . . . . . . . . . . . . . . . . . . . . . . . . . . . . . Feedback Blocked . | . . . . . . . . . . . . . . . . . . . . . . . . . . . . . . . . . . Robot Schematics Acquired 7 | . . . . . . . . . . . . . . . 6 . . 1 . . . . . . . . . . . . . . . Robots Built . | . . . . . . . . . . . . . . . . . . . . . . . . . . . . . . . . . . Authchips . | . . . . . . . . . . . . . . . . . . . . . . . . . . . . . . . . . . Time . | . . . . . . . . . . . . . . . . . . . . . . . . . . . . . . . . . . Total Robot Build Rating . | . . . . . . . . . . . . . . . . . . . . . . . . . . . . . . . . . . Part Schematics Acquired 15 | . . . . . . . . . . . . . . . 11 . . . . . . . . . 4 . . . . . . . . Parts Built . | . . . . . . . . . . . . . . . . . . . . . . . . . . . . . . . . . . Authchips . | . . . . . . . . . . . . . . . . . . . . . . . . . . . . . . . . . . Time . | . . . . . . . . . . . . . . . . . . . . . . . . . . . . . . . . . . Total Part Build Rating . | . . . . . . . . . . . . . . . . . . . . . . . . . . . . . . . . . . Parts Repaired 5 | . 2 . . . . . . . . . . 1 . . . . . . . . . . . . . . . . . 1 1 . . Time 166 | . 52 . . . . . . . . . . 44 . . . . . . . . . . . . . . . . . 54 16 . . Parts Recycled . | . . . . . . . . . . . . . . . . . . . . . . . . . . . . . . . . . . Recycled Matter . | . . . . . . . . . . . . . . . . . . . . . . . . . . . . . . . . . . Retrieved Matter . | . . . . . . . . . . . . . . . . . . . . . . . . . . . . . . . . . . Retrieved Components . | . . . . . . . . . . . . . . . . . . . . . . . . . . . . . . . . . . Parts Scanalyzed . | . . . . . . . . . . . . . . . . . . . . . . . . . . . . . . . . . . Part Schematics Acquired . | . . . . . . . . . . . . . . . . . . . . . . . . . . . . . . . . . . Parts Damaged . | . . . . . . . . . . . . . . . . . . . . . . . . . . . . . . . . . . Bothacking | -11 -10 -10 -10 -9 -8 -7 -7 -7 -7 -7 -6 -6 -6 -6 -6 -5 -5 -5 -5 -5 -5 -4 -4 -4 -4 -3 -3 -3 -3 -2 -1 -1 -1 ------------ Run | Scr Mat Min Exi Min Mat Fac Low Low Zio Dee Pro Fac Low Low Dat Pro Fac Ext Cet Arc Hub Fac Upp Upp Zhi Pro Res Arm Lab Res Acc Com Ac0 Used RIF Installer . | . . . . . . . . . . . . . . . . . . . . . . . . . . . . . . . . . . Robots Hacked 15 | . . . . . . . . . 1 . . 2 1 . . . . 1 . . 1 . . . . . . . . . . 7 2 Non-combat . | . . . . . . . . . . . . . . . . . . . . . . . . . . . . . . . . . . Combat 13 | . . . . . . . . . 1 . . 2 1 . . . . 1 . . 1 . . . . . . . . . . 7 . Robot Hacks Applied 1 | . . . . . . . . . 1 . . . . . . . . . . . . . . . . . . . . . . . . parse_system 1 | . . . . . . . . . 1 . . . . . . . . . . . . . . . . . . . . . . . . Manual 2 | . . . . . . . . . . . . . . . . . . . . . . . . . . . . . . . . . 2 Relay Couplers Released 5 | . . . . . . . . . . . . 3 . . . . 1 . . . . 1 . . . . . . . . . . . Machine Destruction 5 | . . . . . . . . . . . . 3 . . . . 1 . . . . 1 . . . . . . . . . . . Fabnet Peak Effective % 9 | . . . . . . . . . . . 9 9 9 9 9 3 3 3 3 3 3 . . . . . . . . 6 2 2 2 Autooverrided 12 | . . . . . . . . . . . . 2 1 . . . . 1 . . 1 . . . . . . . . . . 7 . Robots Rewired 24 | . . . . . . . 3 . . . 2 . . . . . . 17 . . . . . . . . . 2 . . . . . Allies Hacked 3 | . . . . . . . . . . . . . . . . . . 2 . . . . . . . . . 1 . . . . . Hacks Repelled . | . . . . . . . . . . . . . . . . . . . . . . . . . . . . . . . . . . Allies | -11 -10 -10 -10 -9 -8 -7 -7 -7 -7 -7 -6 -6 -6 -6 -6 -5 -5 -5 -5 -5 -5 -4 -4 -4 -4 -3 -3 -3 -3 -2 -1 -1 -1 -------- Run | Scr Mat Min Exi Min Mat Fac Low Low Zio Dee Pro Fac Low Low Dat Pro Fac Ext Cet Arc Hub Fac Upp Upp Zhi Pro Res Arm Lab Res Acc Com Ac0 Total Allies 46 | . . . . . 1 . 3 . . . 2 2 1 . . . . 25 . . 1 . . . . . 2 2 . . . 7 . Largest Group 17 | . . . . . 1 . 3 2 1 . 2 2 1 . . . . 17 12 1 1 . . . . . 2 2 . . . 7 . Highest-Rated Group 646 | . . . . . 10 . 93 62 31 . 58 76 29 . . . . 646 479 138 49 . . . . . 112 112 . . . 455 . Highest-Rated Ally 159 | . . . . . 10 . 31 31 31 . 29 47 29 . . . . 159 159 138 49 . . . . . 56 65 . . . 89 . Total Orders 6 | . . . . . . . . . 1 . . . . . . . . 5 . . . . . . . . . . . . . . . STAY 3 | . . . . . . . . . 1 . . . . . . . . 2 . . . . . . . . . . . . . . . FOLLOW 3 | . . . . . . . . . . . . . . . . . . 3 . . . . . . . . . . . . . . . Ally Attacks 309 | . . . . . . . 41 11 4 . . 16 5 . . . . 129 63 . 1 . . . . . 13 5 . . . 21 . Total Damage 7183 | . . . . . . . 586 86 84 . . 262 95 . . . . 2856 1758 . 25 . . . . . 409 161 . . . 861 . Kills 37 | . . . . . . . 4 2 1 . . 3 . . . . . 11 9 . . . . . . . 2 1 . . . 4 . Allies Corrupted 2 | . . . . . . . . . . . . . . . . . . 1 . . . . . . . . . . . . . 1 . Allies Melted 1 | . . . . . . . . . . . . 1 . . . . . . . . . . . . . . . . . . . . . Intel | -11 -10 -10 -10 -9 -8 -7 -7 -7 -7 -7 -6 -6 -6 -6 -6 -5 -5 -5 -5 -5 -5 -4 -4 -4 -4 -3 -3 -3 -3 -2 -1 -1 -1 ------- Run | Scr Mat Min Exi Min Mat Fac Low Low Zio Dee Pro Fac Low Low Dat Pro Fac Ext Cet Arc Hub Fac Upp Upp Zhi Pro Res Arm Lab Res Acc Com Ac0 Robot Analysis Total 129 | . 1 . . . . . . . . . . . . . 128 . . . . . . . . . . . . . . . . . . Derelict Logs Recovered 10 | . . 1 . . . . . 1 1 . 1 . 2 . . 2 . . . . . . 2 . . . . . . . . . . Drone Launches . | . . . . . . . . . . . . . . . . . . . . . . . . . . . . . . . . . . Drone Recoveries . | . . . . . . . . . . . . . . . . . . . . . . . . . . . . . . . . . . Exploration | -11 -10 -10 -10 -9 -8 -7 -7 -7 -7 -7 -6 -6 -6 -6 -6 -5 -5 -5 -5 -5 -5 -4 -4 -4 -4 -3 -3 -3 -3 -2 -1 -1 -1 ------------- Run | Scr Mat Min Exi Min Mat Fac Low Low Zio Dee Pro Fac Low Low Dat Pro Fac Ext Cet Arc Hub Fac Upp Upp Zhi Pro Res Arm Lab Res Acc Com Ac0 Turns Passed 55091 | 101 472 673 608 759 1281 1443 1091 617 9658 4531 1542 1376 458 458 1152 594 491 2831 452 5464 1023 726 2051 729 997 1120 431 1321 1437 606 1818 5857 923 Spaces Moved 17353 | 41 233 324 376 465 450 419 392 240 3573 1442 325 553 211 206 161 271 206 807 161 230 335 278 461 275 165 233 144 378 204 210 914 2285 385 Core 770 | . . . . . . . . . 601 . . . . . . . . . . 154 . . . . . . . . . . . . 15 Treads 10733 | 41 233 324 376 465 450 419 392 240 2972 1146 . . . . . . . . . . 124 . . . . . . . . . 896 2285 370 Legs 5850 | . . . . . . . . . . 296 325 553 211 206 161 271 206 807 161 76 211 278 461 275 165 233 144 378 204 210 18 . . Wheels . | . . . . . . . . . . . . . . . . . . . . . . . . . . . . . . . . . . Hover . | . . . . . . . . . . . . . . . . . . . . . . . . . . . . . . . . . . Flight . | . . . . . . . . . . . . . . . . . . . . . . . . . . . . . . . . . . Fastest Speed 50 | 160 160 160 160 160 160 240 240 240 50 210 210 210 210 210 210 210 210 210 210 210 210 210 210 210 210 240 240 240 240 185 160 151 50 Average Speed 227 | 160 160 167 160 160 215 240 240 240 208 237 210 218 210 210 210 210 210 237 215 2011 221 215 235 239 239 240 240 240 240 209 163 151 147 Slowest Speed 2900 | 160 160 240 160 160 240 240 240 240 245 247 210 226 210 210 210 210 210 240 240 2900 320 240 240 240 240 240 240 240 240 240 240 160 151 Overloaded Moves . | . . . . . . . . . . . . . . . . . . . . . . . . . . . . . . . . . . Propulsion Burnouts . | . . . . . . . . . . . . . . . . . . . . . . . . . . . . . . . . . . Robots Hopped . | . . . . . . . . . . . . . . . . . . . . . . . . . . . . . . . . . . Cave-ins Triggered 1 | . . . . . . . . . . . . . . . . . . . . . . 1 . . . . . . . . . . . Teleports 2 | . . . . . . . . . . . . . . . . . . . . . . . . . . . . . . . . 1 1 Exploration Rate (%) 46 | 4 30 54 70 61 32 15 60 43 90 89 54 19 41 38 77 58 8 84 63 71 40 11 63 47 60 39 6 33 96 7 19 75 24 Regions Visited 33 Branch Regions 24 Pre-discovered Areas 36 | . 1 2 1 . 1 . . . 1 . . . . . 27 . . . . . . . . . 3 . . . . . . . . Known Exits Taken 7 | . . . . . . 1 . . . . . 1 . . . . 1 . . . . 1 . . . . 1 . 1 1 . . . Unknown Exits Taken 26 | 1 1 1 1 1 1 . 1 1 1 1 1 . 1 1 1 1 . 1 1 1 1 . 1 1 1 1 . 1 . . 1 1 . Scrap Searched 18 | . . . . 1 . . 1 1 3 . . . 6 1 . . . . . . . . 2 2 . 1 . . . . . . . Spaces Dug 459 | . 5 8 . . 14 7 2 . 33 . 8 12 4 . . 6 8 3 . 3 173 12 3 . . 6 6 14 . 13 23 74 22 Terrain Destroyed 1039 | . 29 8 . . 29 7 2 39 76 38 27 22 7 6 21 8 14 18 7 6 201 20 27 84 . 8 16 96 . 15 44 89 75 Melee 54 | . . . . . 14 5 2 . 33 . . . . . . . . . . . . . . . . . . . . . . . . Projectile 399 | . . . . . . 2 . . . 3 27 22 7 6 . 8 14 18 7 6 32 20 6 10 . 8 7 32 . 14 43 33 74 AOE 580 | . 29 8 . . 15 . . 39 43 35 . . . . 21 . . . . . 169 . 21 74 . . 9 61 . . . 56 . Terrain Rammed . | . . . . . . . . . . . . . . . . . . . . . . . . . . . . . . . . . . Walls Destroyed . | . . . . . . . . . . . . . . . . . . . . . . . . . . . . . . . . . . Machines Disabled . | . . . . . . . . . . . . . . . . . . . . . . . . . . . . . . . . . . Actions | -11 -10 -10 -10 -9 -8 -7 -7 -7 -7 -7 -6 -6 -6 -6 -6 -5 -5 -5 -5 -5 -5 -4 -4 -4 -4 -3 -3 -3 -3 -2 -1 -1 -1 --------- Run | Scr Mat Min Exi Min Mat Fac Low Low Zio Dee Pro Fac Low Low Dat Pro Fac Ext Cet Arc Hub Fac Upp Upp Zhi Pro Res Arm Lab Res Acc Com Ac0 Total 30036 | 61 316 393 385 477 655 649 477 267 4549 2479 1103 652 216 217 978 280 234 1608 222 1040 482 367 1419 320 758 780 204 626 1132 327 1110 4570 683 Wait 9213 | 3 55 7 . 2 73 76 6 10 169 906 694 31 . . 778 1 2 520 . 788 38 37 904 13 561 525 9 102 869 58 70 1890 16 Move 17319 | 40 232 323 375 464 449 418 391 239 3572 1441 324 552 210 205 160 270 205 806 160 229 334 277 460 274 164 232 143 377 203 209 913 2284 384 Hop . | . . . . . . . . . . . . . . . . . . . . . . . . . . . . . . . . . . Pick Up 253 | . 10 12 3 1 27 9 4 1 44 11 . 7 . 2 4 . 2 3 5 . 3 4 17 2 2 . 8 10 6 3 3 38 12 Fast Attach 126 | 2 . 1 . 1 4 7 1 . 10 5 1 5 . . . . 1 2 5 . 4 . 5 1 4 2 . 1 9 5 10 23 17 Attach 84 | . . 3 . . 6 4 . . 3 5 1 3 . . 6 . 1 . 2 . 2 2 1 1 . . 2 4 4 2 2 19 11 Detach 126 | . . . . . . 3 . . 3 9 5 2 . . 10 . . 2 4 5 4 . 10 4 8 7 2 2 12 3 3 23 5 Swap 289 | 3 6 2 1 1 18 15 10 7 15 11 1 2 1 . 2 1 2 5 6 . 6 7 7 7 1 3 6 27 3 15 24 33 41 Drop 292 | 3 2 7 6 2 18 12 5 2 34 25 . 8 . 2 9 . 1 7 13 . 4 2 7 2 5 2 7 11 11 4 11 55 15 Fire 1327 | 9 11 34 . . 42 96 31 6 51 35 42 42 5 8 3 8 20 59 27 18 87 38 8 16 13 9 27 80 15 28 72 205 182 Melee 700 | . . . . . 16 5 2 2 648 27 . . . . . . . . . . . . . . . . . . . . . . . Ram . | . . . . . . . . . . . . . . . . . . . . . . . . . . . . . . . . . . Kick 2 | . . . . . . . . . . . . . . . 1 . . . . . . . . . . . . 1 . . . . . Crush 19 | 1 . 4 . 6 2 4 . . . . . . . . . . . . . . . . . . . . . . . . 2 . . Escape Stasis . | . . . . . . . . . . . . . . . . . . . . . . . . . . . . . . . . . . Rewire 277 | . . . . . . . 27 . . . 35 . . . . . . 204 . . . . . . . . . 11 . . . . . Trap 9 | . . . . . . . . . . 4 . . . . 5 . . . . . . . . . . . . . . . . . . Miscellaneous . | . . . . . . . . . . . . . . . . . . . . . . . . . . . . . . . . . . Route ------- -11/Scrapyard -10/Materials -10/Mines (discovered 2 exits: [*Mat] / *Exi) -10/Exiles -9/Mines -8/Materials -7/Factory (discovered 2 exits: *Low x2) -7/Lower Caves -7/Lower Caves (discovered 2 exits: *Fac / *Zio) -7/Zion (discovered 2 exits: [*Dee] / [*Pro]) -7/Deep Caves -6/Proximity Caves -6/Factory (discovered 2 exits: *Low x2) -6/Lower Caves -6/Lower Caves (discovered 2 exits: *Fac / *Dat) -6/Data Miner -5/Proximity Caves -5/Factory -5/Extension (discovered 2 exits: *Fac / *Cet) -5/Cetus (discovered 2 exits: *Fac / [*Arc]) -5/Archives -5/Hub_04(d) (discovered 2 exits: *Fac x2) -4/Factory (discovered 2 exits: *Upp x2) -4/Upper Caves -4/Upper Caves -4/Zhirov -3/Proximity Caves -3/Research (discovered 3 exits: Res / *Arm / Tes) -3/Armory (discovered 2 exits: Res / *Lab) -3/Lab -2/Research (discovered 3 exits: *Acc x3) -1/Access -1/Command (discovered 3 exits: [*Sur x2] / [*Ac0]) -1/Access_0 Near Former Tau Ceti IV History --------- Turn | Location | Event 20 | -11/Scrapyard | Discovered new exit (range 3) 102 | -11/Scrapyard | Entered Materials 305 | -10/Materials | Build established: Mutant 511 | -10/Materials | Repaired Huge Storage Unit 538 | -10/Materials | Repaired Core Shielding 547 | -10/Materials | Discovered new exit (range 10) 574 | -10/Materials | Entered Mines 660 | -10/Mines | Learned location of Storage (-9) 781 | -10/Mines | Discovered new exit (range 9) 923 | -10/Mines | Joined a pair of Derelicts in attacking an 0b10 outpost 1224 | -10/Mines | Received a Rocket Launcher from a helpful Derelict 1239 | -10/Mines | Deemed a non-threat by the Exiles lab entrance 1240 | -10/Mines | Discovered new exit (range 5) 1247 | -10/Mines | Entered Exiles 1286 | -10/Exiles | Met 8R-AWN 1311 | -10/Exiles | Met EX-HEX 1404 | -10/Exiles | Met EX-DEC 1433 | -10/Exiles | Learned location of Zion (-7) 1510 | -10/Exiles | Discovered new exit (range 10) 1631 | -10/Exiles | Met EX-BIN 1648 | -10/Exiles | Aligned with FarCom system 1650 | -10/Exiles | Given EX-Vault access code 1687 | -10/Exiles | Opened EX-Vault 1701 | -10/Exiles | Found XL Autogun Array 1735 | -10/Exiles | Warned to stay clear of 0b10 Research branches 1755 | -10/Exiles | Exiles lab attacked by MAIN.C 1855 | -10/Exiles | Left Exiles lab with XL Autogun Array 1855 | -10/Exiles | Entered Mines 1891 | -9/Mines | Met a Derelict bent on vengeance 1986 | -9/Mines | Build established: Scavenger-Mutant 2059 | -9/Mines | Discovered new exit (range 15) 2614 | -9/Mines | Entered Materials 2614 | -8/Materials | Evolved 4 slots: Propulsion x2, Utility x2 3014 | -8/Materials | Discovered new exit (range 3) 3895 | -8/Materials | Entered Factory 3895 | -7/Factory | Evolved 2 slots: Power x1, Utility x1 4694 | -7/Factory | Identified exit to Lower Caves 5338 | -7/Factory | Entered Lower Caves 5549 | -7/Lower Caves | Attacked by a delusional Derelict stockpiling Unaware 6094 | -7/Lower Caves | Discovered new exit (range 15) 6429 | -7/Lower Caves | Entered another Lower Caves area 6429 | -7/Lower Caves | Accompanied by 2 allies 6430 | -7/Lower Caves | Discovered new exit (range 14) 6567 | -7/Lower Caves | Learned Factory stockpile data 6991 | -7/Lower Caves | Discovered new exit (range 10) 7046 | -7/Lower Caves | Entered Zion 7046 | -7/Zion | Accompanied by 1 ally 7151 | -7/Zion | System corruption cleaned by Quarantine Array 7341 | -7/Zion | Discovered new exit (range 16) 7513 | -7/Zion | Found Prototype Processor 7517 | -7/Zion | Found Prototype Processor 7519 | -7/Zion | Identified Exp. Core Analyzer 7520 | -7/Zion | Found Prototype Processor 7526 | -7/Zion | Found Prototype Processor 7560 | -7/Zion | Identified Exp. Targeting Computer (x3) 7839 | -7/Zion | Found Prototype Launcher 7935 | -7/Zion | Learned Factory trap positions 7944 | -7/Zion | Identified Gui. Missile Launcher 8455 | -7/Zion | Rebuked by Imprinter 15120 | -7/Zion | Attacked by Zionites 15629 | -7/Zion | Destroyed Imprinter 15645 | -7/Zion | Extracted access codes from Imprinter's data core 16420 | -7/Zion | Opened final containment barrier to the Deep Caves 16629 | -7/Zion | Found Prototype Device 16694 | -7/Zion | Discovered new exit (range 5) 16699 | -7/Zion | Saw the warning signs outside the Deep Caves entrance 16704 | -7/Zion | Entered Deep Caves 17816 | -7/Deep Caves | Discovered new exit (range 7) 17953 | -7/Deep Caves | Spotted as-65940 18535 | -7/Deep Caves | Identified Bomb Factory No. 2 19174 | -7/Deep Caves | Found Prototype Protection 19174 | -7/Deep Caves | Identified Zio. Weapon Casing 19220 | -7/Deep Caves | Found Zio. Weapon Casing 19275 | -7/Deep Caves | Found Zio. Weapon Casing 19619 | -7/Deep Caves | Triggered Deep Caves wall 19619 | -7/Deep Caves | Spotted AS-05503 19627 | -7/Deep Caves | Destroyed AS-05503 19631 | -7/Deep Caves | Spotted AS-70108 19634 | -7/Deep Caves | Destroyed AS-70108 19658 | -7/Deep Caves | Destroyed 37 combat bots 19738 | -7/Deep Caves | Exposed GOLEM chamber 19743 | -7/Deep Caves | Found GOLEM Unit 20205 | -7/Deep Caves | Build established: Golem 20582 | -7/Deep Caves | Found GOLEM Unit 21235 | -7/Deep Caves | Entered Proximity Caves 21524 | -6/Proximity Caves | Learned Factory terminal intel 21603 | -6/Proximity Caves | Attracted the attention of an 0b10 checkpoint 21891 | -6/Proximity Caves | Attracted the attention of an 0b10 outpost 21928 | -6/Proximity Caves | Core integrity fell below 50% 21971 | -6/Proximity Caves | Lost 3 parts (2n1w) 21987 | -6/Proximity Caves | Destroyed 11 combat bots 21992 | -6/Proximity Caves | Discovered new exit (range 7) 22777 | -6/Proximity Caves | Entered Factory 22777 | -6/Factory | Accompanied by 2 allies 22777 | -6/Factory | Evolved 2 slots: Utility x2 22778 | -6/Factory | Loaded intel: 118 trap records 22780 | -6/Factory | Loaded intel: 26 terminal locations 23069 | -6/Factory | Build established: Mutant 23099 | -6/Factory | P-60 Hacker assimilated allied Soldier 5a 23513 | -6/Factory | Repaired Hrd. Heavy Armor Plating 23537 | -6/Factory | Build established: Golem 23605 | -6/Factory | Identified exit to Lower Caves 24153 | -6/Factory | Entered Lower Caves 24323 | -6/Lower Caves | Learned Factory emergency access door positions 24395 | -6/Lower Caves | Encountered a Warlord checkpoint 24415 | -6/Lower Caves | Learned Factory garrison access intel 24590 | -6/Lower Caves | Discovered new exit (range 10) 24611 | -6/Lower Caves | Entered another Lower Caves area 24652 | -6/Lower Caves | Discovered new exit (range 6) 24821 | -6/Lower Caves | Encountered a Warlord checkpoint 25054 | -6/Lower Caves | Discovered new exit (range 6) 25066 | -6/Lower Caves | Ambushed by wild Derelicts 25069 | -6/Lower Caves | Entered Data Miner 25070 | -6/Data Miner | Discovered new exit (range 7) 25110 | -6/Data Miner | Met Data Miner 25148 | -6/Data Miner | Learned location of Section 7 (-2) 25148 | -6/Data Miner | Acquired the access code to Warlord's prototype stash 25184 | -6/Data Miner | Received God Mode back door access code from Data Miner 25358 | -6/Data Miner | Interfaced with the Data Conduit 25384 | -6/Data Miner | Build established: Mutant 25705 | -6/Data Miner | Build established: Golem 26221 | -6/Data Miner | Entered Proximity Caves 26335 | -5/Proximity Caves | Learned location of 1 exit from Factory 26621 | -5/Proximity Caves | Learned Factory terminal intel 26722 | -5/Proximity Caves | Discovered new exit (range 10) 26779 | -5/Proximity Caves | Spotted B-75 Beast 26815 | -5/Proximity Caves | Entered Factory 26815 | -5/Factory | Evolved 2 slots: Utility x2 26816 | -5/Factory | Identified exit to Extension 26818 | -5/Factory | Loaded intel: 302 machine locations 26819 | -5/Factory | Loaded intel: 28 terminal locations 26820 | -5/Factory | Loaded intel: 4 garrison access locations 27306 | -5/Factory | Entered Extension 27307 | -5/Extension | Loaded intel: 36 machine locations 27460 | -5/Extension | Rescued a captive Derelict 27461 | -5/Extension | Rescued a captive Derelict 27735 | -5/Extension | Build established: Scavenger-Golem 28192 | -5/Extension | Rescued a captive Derelict 28193 | -5/Extension | Rescued a captive Derelict 28267 | -5/Extension | Build established: Commander-Golem 29280 | -5/Extension | Spotted B-75 Beast 29281 | -5/Extension | Destroyed B-75 Beast 29306 | -5/Extension | Spotted B-75 Beast 29311 | -5/Extension | Destroyed B-75 Beast 29463 | -5/Extension | Rescued a captive Derelict 29463 | -5/Extension | Rescued a captive Derelict 29485 | -5/Extension | Rescued A7 30006 | -5/Extension | First assault squad dispatched 30036 | -5/Extension | Discovered new exit (range 13) 30036 | -5/Extension | Discovered new exit (range 9) 30048 | -5/Extension | Disrupted transfer network 30137 | -5/Extension | Entered Cetus 30137 | -5/Cetus | Accompanied by 12 allies (A7) 30138 | -5/Cetus | Loaded intel: 24 machine locations 30142 | -5/Cetus | Acquired a Cetus Manufacturing Module code from A7 30169 | -5/Cetus | Spotted Cetus Guard 30170 | -5/Cetus | Spotted Cetus Guard 30170 | -5/Cetus | Spotted Cetus Guard 30173 | -5/Cetus | Spotted Cetus Guard 30187 | -5/Cetus | Allies destroyed Cetus Guard 30192 | -5/Cetus | Destroyed Cetus Guard 30192 | -5/Cetus | Allies destroyed Cetus Guard 30193 | -5/Cetus | Allies destroyed Cetus Guard 30310 | -5/Cetus | Started Cetus Manufacturing Module 30310 | -5/Cetus | Cetus Manufacturing Module disabled 30330 | -5/Cetus | Escorted A7 to Cetus Mainframe 30362 | -5/Cetus | Discovered new exit (range 15) 30406 | -5/Cetus | Spotted Cetus Guard 30407 | -5/Cetus | Spotted Cetus Guard 30411 | -5/Cetus | Spotted Cetus Guard 30413 | -5/Cetus | Allies destroyed Cetus Guard 30414 | -5/Cetus | Spotted Cetus Guard 30419 | -5/Cetus | Destroyed Cetus Guard 30425 | -5/Cetus | Destroyed Cetus Guard 30426 | -5/Cetus | Allies destroyed Cetus Guard 30444 | -5/Cetus | Discovered new exit (range 15) 30459 | -5/Cetus | Met Revision 17 30459 | -5/Cetus | Destroyed Revision 17 30589 | -5/Cetus | Entered Archives 30589 | -5/Archives | Accompanied by 1 ally (A7) 30590 | -5/Archives | Loaded intel: 8 machine locations 30594 | -5/Archives | Received a hacking code to weaken MAIN.C 30767 | -5/Archives | Build established: Golem 31012 | -5/Archives | Discovered new exit (range 16) 36053 | -5/Archives | Entered Hub_04(d) 36054 | -5/Hub_04(d) | Loaded intel: 67 machine locations 36261 | -5/Hub_04(d) | Found Launcher Loader 36442 | -5/Hub_04(d) | Network Hub disabled 36502 | -5/Hub_04(d) | Spotted Lightning 36598 | -5/Hub_04(d) | Network Hub disabled 36605 | -5/Hub_04(d) | Spotted Lightning 36618 | -5/Hub_04(d) | Spotted Lightning 36643 | -5/Hub_04(d) | System corruption reached 10% 36662 | -5/Hub_04(d) | Destroyed Lightning 36668 | -5/Hub_04(d) | Destroyed Lightning 36695 | -5/Hub_04(d) | Destroyed Lightning 36724 | -5/Hub_04(d) | Found Exp. EM Disruption Field 36728 | -5/Hub_04(d) | Found Prototype Energy Cannon 36728 | -5/Hub_04(d) | Identified EMDS 36737 | -5/Hub_04(d) | Found Exp. Targeting Computer 36786 | -5/Hub_04(d) | Destroyed 8 combat bots 36924 | -5/Hub_04(d) | Build established: Scavenger-Mutant 37025 | -5/Hub_04(d) | Discovered new exit (range 13) 37061 | -5/Hub_04(d) | Discovered new exit (range 11) 37076 | -5/Hub_04(d) | Entered Factory 37076 | -4/Factory | Evolved 2 slots: Power x1, Weapon x1 37077 | -4/Factory | Loaded intel: 284 machine locations 37214 | -4/Factory | Identified exit to Upper Caves 37359 | -4/Factory | Build established: Generator-Golem 37540 | -4/Factory | Crushed by falling debris 37802 | -4/Factory | Entered Upper Caves 37827 | -4/Upper Caves | Encountered a Warlord checkpoint 38090 | -4/Upper Caves | Build established: Generator-Mutant 38849 | -4/Upper Caves | Spotted B-86 Titan 39573 | -4/Upper Caves | Learned 8 Research zone layouts 39625 | -4/Upper Caves | Build established: Generator-Golem 39695 | -4/Upper Caves | Discovered new exit (range 12) 39794 | -4/Upper Caves | Learned location of 2 exits from Research 39853 | -4/Upper Caves | Entered another Upper Caves area 40177 | -4/Upper Caves | Attracted the attention of an 0b10 checkpoint 40350 | -4/Upper Caves | Destroyed 8 combat bots 40519 | -4/Upper Caves | Discovered new exit (range 9) 40582 | -4/Upper Caves | Entered Zhirov 40582 | -4/Zhirov | Discovered new exit (range 4) 40626 | -4/Zhirov | Met Zhirov 40693 | -4/Zhirov | Zhirov requested help retrieving the SGEMP Prototype 40730 | -4/Zhirov | Found Alien Artifact 40730 | -4/Zhirov | Identified Integrated Dissipator 40730 | -4/Zhirov | Installed Integrated Dissipator, increased core heat dissipation (+20) 40789 | -4/Zhirov | Found Alien Artifact 41579 | -4/Zhirov | Entered Proximity Caves 41581 | -3/Proximity Caves | Attracted the attention of an 0b10 checkpoint 42115 | -3/Proximity Caves | Discovered new exit (range 18) 42149 | -3/Proximity Caves | Build established: Generator-Mutant 42465 | -3/Proximity Caves | Build established: Generator-Golem 42699 | -3/Proximity Caves | Entered Research 42699 | -3/Research | Evolved 2 slots: Utility x1, Weapon x1 42700 | -3/Research | Identified exit to Armory 42700 | -3/Research | Identified exit to Research 42701 | -3/Research | Identified exit to Testing 42702 | -3/Research | Loaded intel: 114 machine locations 43130 | -3/Research | Entered Armory 43131 | -3/Armory | Loaded intel: 65 machine locations 43751 | -3/Armory | Build established: Generator-Skirmisher 43788 | -3/Armory | Discovered exit to Research (range 19) 44146 | -3/Armory | Intercept squad dispatched 44152 | -3/Armory | Spotted Tracker 44162 | -3/Armory | Destroyed Tracker 44168 | -3/Armory | Spotted Combat Programmer 44194 | -3/Armory | Destroyed Combat Programmer 44217 | -3/Armory | Found Exp. Targeting Computer 44422 | -3/Armory | First assault squad dispatched 44440 | -3/Armory | Discovered new exit (range 5) 44451 | -3/Armory | Entered Lab 44484 | -3/Lab | Discovered exit to Research (range 9) 45082 | -3/Lab | Build established: Generator-Golem 45352 | -3/Lab | Hidden lab's door opened automatically 45352 | -3/Lab | Sensor layout match revealed 45353 | -3/Lab | Gained access to the hidden lab's interior 45357 | -3/Lab | Decrypted terminal 45362 | -3/Lab | Detected by scanners 45371 | -3/Lab | Confronted by A5 45402 | -3/Lab | Destroyed A5 45493 | -3/Lab | Found Integrated Dissipator 45493 | -3/Lab | Installed Integrated Dissipator, increased core heat dissipation (+20) 45509 | -3/Lab | Found Alien Artifact 45509 | -3/Lab | Identified Core Regenerator 45509 | -3/Lab | Used Core Regenerator, restored core integrity (+39) 45569 | -3/Lab | Found Prototype Protection 45569 | -3/Lab | Identified Hvy. Regenerative Plating 45575 | -3/Lab | Found Prototype Energy Gun 45575 | -3/Lab | Identified Tachyon Dispersion Ray 45617 | -3/Lab | Decrypted terminal 45617 | -3/Lab | Acquired modification code for an L2 power cell 45620 | -3/Lab | Build established: Generator-Mutant 45734 | -3/Lab | Found Alien Artifact 45788 | -3/Lab | Found Prototype Hackware 45873 | -3/Lab | Found Prototype Hackware 45873 | -3/Lab | Identified Exp. Hacking Suite 45875 | -3/Lab | Identified Quantum Router 45888 | -3/Lab | Entered Research 45888 | -2/Research | Evolved 2 slots: Propulsion x2 45889 | -2/Research | Loaded intel: 111 machine locations 46062 | -2/Research | Repaired Centrium Heavy Treads 46247 | -2/Research | Identified exit to Access 46494 | -2/Research | Entered Access 46494 | -1/Access | Evolved 2 slots: Weapon x2 46495 | -1/Access | Loaded intel: 100 machine locations 47001 | -1/Access | Repaired Adv. Terrain Scanner 47155 | -1/Access | Intercept squad dispatched 47167 | -1/Access | Spotted Tracker 47168 | -1/Access | Spotted Tracker 47172 | -1/Access | Destroyed Tracker 47175 | -1/Access | Destroyed Tracker 47212 | -1/Access | Spotted Combat Programmer 47216 | -1/Access | Destroyed Combat Programmer 47224 | -1/Access | Spotted Combat Programmer 47227 | -1/Access | Destroyed Combat Programmer 47613 | -1/Access | Discovered new exit (range 7) 47838 | -1/Access | Build established: Generator-Executioner 48253 | -1/Access | Intercept squad dispatched 48275 | -1/Access | Spotted Tracker 48276 | -1/Access | Spotted Tracker 48281 | -1/Access | Destroyed Tracker 48286 | -1/Access | Destroyed Tracker 48312 | -1/Access | Entered Command 48313 | -1/Command | Loaded intel: 64 machine locations 48571 | -1/Command | Spotted Combat Programmer 48572 | -1/Command | Spotted Combat Programmer 48576 | -1/Command | Destroyed Combat Programmer 48579 | -1/Command | Destroyed Combat Programmer 48580 | -1/Command | Spotted M Guard 48583 | -1/Command | Spotted M Guard 48599 | -1/Command | Destroyed M Guard 48617 | -1/Command | Destroyed M Guard 48617 | -1/Command | All MAIN.C guards destroyed 48712 | -1/Command | Found Prototype Reactor 48712 | -1/Command | Identified Zero-point Reactor 48888 | -1/Command | Met MAIN.C 48898 | -1/Command | 0b10 Conduit disabled 48901 | -1/Command | Destroyed MAIN.C Shell 48902 | -1/Command | MAIN.C activated Command garrisons 48921 | -1/Command | Destroyed MAIN.C 48937 | -1/Command | Discovered new exit (range 50) 48937 | -1/Command | Discovered new exit (range 83) 48937 | -1/Command | Identified Transdimensional Reconstructor 48937 | -1/Command | Extracted map data and part IDs from MAIN.C's data core 48941 | -1/Command | Found Zero-point Reactor 48948 | -1/Command | Found Singularity Reactor 48951 | -1/Command | Found Exp. Targeting Computer 48956 | -1/Command | Found Omega Cannon 49535 | -1/Command | Build established: Generator-Mutant 51013 | -1/Command | Found Exp. System Purifier 51079 | -1/Command | Found Exp. Armor Integrity Analyzer 51373 | -1/Command | Build established: Scavenger-Mutant 51766 | -1/Command | Build established: Scavenger-Executioner 52357 | -1/Command | Found Adv. Kinecellerator 52362 | -1/Command | Found Multirail 52383 | -1/Command | Found Multirail 52391 | -1/Command | Found Multirail 52404 | -1/Command | Found Multirail 52409 | -1/Command | Found Corrupted Exp. Target Analyzer 53672 | -1/Command | Found Multirail 53680 | -1/Command | Found Multirail 54161 | -1/Command | Warped through subspace to slip node 54161 | -1/Command | Discovered new exit (range 4) 54164 | -1/Command | Found Singularity Reactor 54169 | -1/Command | Entered Access_0 54170 | -1/Access_0 | Loaded intel: 44 machine locations 54170 | -1/Access_0 | Met Architect 54172 | -1/Access_0 | Architect warped through subspace 54174 | -1/Access_0 | Destroyed A8 with code downloaded from Data Conduit 54225 | -1/Access_0 | Architect warped through subspace 54253 | -1/Access_0 | Spotted Enhanced Programmer 54254 | -1/Access_0 | Spotted Enhanced Programmer 54264 | -1/Access_0 | Destroyed Enhanced Programmer 54266 | -1/Access_0 | Destroyed Enhanced Programmer 54272 | -1/Access_0 | Found Exp. Target Analyzer 54296 | -1/Access_0 | Found Integrity Redistributor 54304 | -1/Access_0 | Architect warped through subspace 54331 | -1/Access_0 | Architect warped through subspace 54363 | -1/Access_0 | Architect warped through subspace 54372 | -1/Access_0 | Found Integrated Dissipator 54372 | -1/Access_0 | Installed Integrated Dissipator, increased core heat dissipation (+20) 54389 | -1/Access_0 | Spotted Enhanced Programmer 54399 | -1/Access_0 | Architect warped through subspace 54403 | -1/Access_0 | Destroyed Enhanced Programmer 54440 | -1/Access_0 | Architect warped through subspace 54502 | -1/Access_0 | Found Prototype Device 54507 | -1/Access_0 | Architect warped through subspace 54507 | -1/Access_0 | Identified Desublimator 54533 | -1/Access_0 | Architect warped through subspace 54561 | -1/Access_0 | Subspace Access Node disabled 54576 | -1/Access_0 | Used Integrity Redistributor, redistributed integrity from core (-381) 54577 | -1/Access_0 | Core integrity fell below 50% 54589 | -1/Access_0 | Architect warped through subspace 54618 | -1/Access_0 | Spotted Enhanced Programmer 54620 | -1/Access_0 | Architect warped through subspace 54625 | -1/Access_0 | Destroyed Enhanced Programmer 54639 | -1/Access_0 | Subspace Access Node disabled 54654 | -1/Access_0 | Architect warped through subspace 54657 | -1/Access_0 | Spotted Enhanced Programmer 54665 | -1/Access_0 | Destroyed Enhanced Programmer 54697 | -1/Access_0 | Architect warped through subspace 54734 | -1/Access_0 | Architect warped through subspace 54770 | -1/Access_0 | Architect warped through subspace 54773 | -1/Access_0 | Found Desublimator 54800 | -1/Access_0 | Architect warped through subspace 54843 | -1/Access_0 | Architect warped through subspace 54863 | -1/Access_0 | Architect warped through subspace 54878 | -1/Access_0 | Architect warped through subspace 54895 | -1/Access_0 | Architect warped through subspace 54895 | -1/Access_0 | Spotted Enhanced Programmer 54900 | -1/Access_0 | Spotted Enhanced Programmer 54904 | -1/Access_0 | Destroyed Enhanced Programmer 54910 | -1/Access_0 | A6 warped into view 54914 | -1/Access_0 | Destroyed A6 with code downloaded from Data Conduit 54916 | -1/Access_0 | Core integrity fell below 20% 54920 | -1/Access_0 | Destroyed Enhanced Programmer 54926 | -1/Access_0 | Architect warped through subspace 54948 | -1/Access_0 | Architect warped through subspace 54957 | -1/Access_0 | Lost 3 parts (2u1w) 54972 | -1/Access_0 | Architect warped through subspace 54999 | -1/Access_0 | Architect warped through subspace 55027 | -1/Access_0 | Subspace Access Node disabled 55050 | -1/Access_0 | Subspace Access Node disabled 55081 | -1/Access_0 | Destroyed Architect 55082 | -1/Access_0 | Architect triggered a singularity event 55083 | -1/Access_0 | Released all parts (17) 55087 | -1/Access_0 | Found Hpw. Transdimensional Reconstructor 55087 | -1/Access_0 | Warped through subspace to slip node 55087 | -1/Access_0 | Discovered new exit (range 8) 55092 | *** | Escaped singularity! Last Messages --------------- 55083_ Released Exp. Biometal Heavy Treads. 55083_ Released XL Autogun Subcomponent. 55083_ Released Exp. Matter Compressor. 55083_ Released XL Autogun Subcomponent. 55083_ Released Omega Cannon. 55083_ Released Desublimator. 55084_ A0_COM: 9. 55085_ A0_COM: 8. 55086_ A0_COM: 7. 55086_ Acquired 19 matter. 55087_ A0_COM: 6. 55087_ Acquired Hpw. Transdimensional Reconstructor. 55087_ Warped through subspace, drawn to slip node. 55087_ EXIT=FOUND 55088_ A0_COM: 5. 55089_ A0_COM: 4. 55090_ A0_COM: 3. 55091_ A0_COM: 2. 55092_ A0_COM: 1. [Achievement: By A Hair] Map ----- +----------------------------------------------------+ | | | | | | | | | | | | | | | | | | | | | | | | | | | | | | | | | ?????????????????????????????????????????????????? | | ?????????????????????????????????????????????????? | | ?????????????????????????????????????????????????? | | ?????????????????????????????????????????????????? | | ?????????????????????????????????????????????????? | | ?????????????????????????????????????????????????? | | ????????????????????????###??????????????????????? | | ???????????????????????## ##?????????????????????? | | ???????????????????????# #?????????????????????? | | ???????????????????????# @ #?????????????????????? | | ??????????????????????## #?????????????????????? | | ??????????????????????# #?????????????????????? | | ??????????????????????# ##?????????????????????? | | ??????????????????????## #?????????????????????? | | ??????????????????????# #?????????????????????? | | ??????????????????????# ##?????????????????????? | | ??????????????????????# < #?????????????????????? | | ??????????????????????# ##?????????????????????? | | ??????????????????????## #??????????????????????? | | ???????????????????????####??????????????????????? | | ?????????????????????????????????????????????????? | | ?????????????????????????????????????????????????? | | ?????????????????????????????????????????????????? | | ?????????????????????????????????????????????????? | | ?????????????????????????????????????????????????? | | ?????????????????????????????????????????????????? | | ?????????????????????????????????????????????????? | | ?????????????????????????????????????????????????? | | ?????????????????????????????????????????????????? | | ?????????????????????????????????????????????????? | | ?????????????????????????????????????????????????? | | ?????????????????????????????????????????????????? | | ?????????????????????????????????????????????????? | | ?????????????????????????????????????????????????? | +----------------------------------------------------+ Best States ------------- Heat Dissipation 182 Coolant Potential 120 Energy Generation 75 Energy Capacity 1340 Matter Stores 800 Matter Capacity 800 Sight Range 23 Terrain Scan Range 20 Terrain Scan Density 210 Jamming Range 16 Additional Mass Support 20 Armor Coverage 1400 Resistance: KI 15 Resistance: TH 15 Resistance: EX 15 Resistance: EM 75 Resistance: I 15 Resistance: S 15 Resistance: P 15 Core Shielding 20 Weapon Shielding 100 Weapon Cycling 25 Phase Shifting 8 Evasion (%) 50 Targeting Accuracy 20 Core Analysis 8 Armor Integrity Analysis 50 Recoil Reduction 6 Matter Filtering 30 Kinecelleration 50 Offensive Hacking 16 Item Schematics ----------------- Combat Drone Bay | -6/Data Miner | Free Lgt. Regenerative Plating | -6/Data Miner | Free Enh. Armored Leg | -6/Data Miner | Free Prc. Matter Filter | -6/Data Miner | Free Tesla Bomb Launcher | -6/Data Miner | Free Imp. Gyrokinetic Inverter | -6/Data Miner | Free Adv. Actuator Array | -6/Data Miner | Free Imp. Linear Gravjet | -6/Data Miner | Free Imp. Antigrav System | -6/Data Miner | Free Biometal Medium Treads | -6/Data Miner | Free Dispersion Rifle | -6/Data Miner | Free Assault Drone Bay | -4/Zhirov | Free Exp. Heat Sink | -4/Zhirov | Free Exp. Optical Array | -4/Zhirov | Free Imp. Arc Thrower | -4/Zhirov | Free Robot Schematics ------------------ H-66 Slayer | -6/Data Miner | Free P-60 Hacker | -6/Data Miner | Free L-41 Fighter | -6/Data Miner | Free B-60 Warrior | -6/Data Miner | Free M-36 Artificer | -6/Data Miner | Free O-32 Director | -6/Data Miner | Free A-15 Conveyor | -5/Extension | Hacked Fabricated ------------ Nothing Alien Tech Used ----------------- Integrated Dissipator Core Regenerator Transdimensional Reconstructor Integrity Redistributor High-powered Transdimensional Reconstructor Achievements -------------- By A Hair Challenges ------------ None Game ------ Seed SmartbombLightpackField Manual? 0 Play Time 07:34:09 Cumulative 1219.3 hours Start 2022.04.21 @ 17:31:47 End 2022.04.22 @ 22:34:54 Sessions 29 Manual Loads 0 Difficulty Rogue Special Mode None Game No. 379 Rogue 379 Adventurer 0 Explorer 0 Win Type 6 Total 71 Types 13/18/13/3/1/2/18/2/1 Lore% 96 Gallery% 96 Achievement% 88 Wizard Run 0 Options --------- ASCII 0 Keyboard 0 Movement Numpad Keybinds 0 Fullscreen 2 Font 24/Smallcaps Map View 76x50 Tactical HUD 1 Map Filters NONE Filters NONE Steam 1 RUN: af5bbc97-a53c-4686-9df7-4f7a4c101b56